{"text_format":"1","workbook":"xlsx","n_sheets":18,"sheets":["Grunddaten","Bescheid","Online_Gebührenberechnung","September","Oktober","November","Dezember","Januar","Februar","März","April","Mai","Juni","Juli","August","Endabrechung","Hinweise","AG"],"not_rendered":{"charts":0,"images":1,"macros":1,"external_links":0,"defined_names":5,"comments":0,"pivot_tables":0},"unopened":[],"bounds":{"document_bytes":16777216,"sheet_cells":100000,"rows_first":2000,"rows_last":500,"rows_between":2000,"halvings":0,"cell_chars":16384,"cell_head_chars":4096},"cells_cut":0,"cells_raw":0,"read":"whole","date_system":"1900"}

{"sheet":"Grunddaten","index":0,"n_rows":63,"n_cols":7,"rows_kept":63,"cut":false,"hidden":true,"merged":[]}
["Grundbetrag",80]
["Familienermäßigung",0,-0.2,-0.3,-0.4]
[null,"5 Std.","6 Std.","8 Std.","9 Std.","10 Std.","Abendgruppe"]
["Zuschläge",0.2,0.3,0.4,0.55000000000000004,0.7,0.4]
[]
[]
["Betreuung"]
[null,1,2,3,4]
["RG",{"$f":"$B$1*(1+B2)","v":80},{"$f":"$B$1*(1+C2)","v":64},{"$f":"$B$1*(1+D2)","v":56},{"$f":"$B$1*(1+E2)","v":48}]
["HG",{"$f":"B9*$B$26","v":56},{"$f":"C9*$B$26","v":44.8},39.199999999999996,33.599999999999994]
["SG",{"$f":"B9","v":80},{"$f":"C9","v":64},{"$f":"D9","v":56},{"$f":"E9","v":48}]
["GT8",{"$f":"$B$1*(1+B$2)*(1+$D$4)","v":112},{"$f":"$B$1*(1+C2)*(1+$D$4)","v":89.6},{"$f":"$B$1*(1+D2)*(1+$D$4)","v":78.399999999999991},{"$f":"$B$1*(1+E2)*(1+$D$4)","v":67.199999999999989}]
["GT9",{"$f":"$B$1*(1+B$2)*(1+$E$4)","v":124},{"$f":"$B$1*(1+C$2)*(1+$E$4)","v":99.2},{"$f":"$B$1*(1+D$2)*(1+$E$4)","v":86.8},{"$f":"$B$1*(1+E$2)*(1+$E$4)","v":74.400000000000006}]
["GT10",{"$f":"$B$1*(1+B$2)*(1+$F$4)","v":136},{"$f":"$B$1*(1+C$2)*(1+$F$4)","v":108.8},{"$f":"$B$1*(1+D$2)*(1+$F$4)","v":95.2},{"$f":"$B$1*(1+E$2)*(1+$F$4)","v":81.599999999999994}]
["SH5",{"$f":"$B$1*(1+B$2)*(1+$B$4)","v":96},{"$f":"$B$1*(1+C$2)*(1+$B$4)","v":76.8},{"$f":"$B$1*(1+D$2)*(1+$B$4)","v":67.2},{"$f":"$B$1*(1+E$2)*(1+$B$4)","v":57.599999999999994}]
["SH6",{"$f":"$B$1*(1+B$2)*(1+$C$4)","v":104},{"$f":"$B$1*(1+C$2)*(1+$C$4)","v":83.2},{"$f":"$B$1*(1+D$2)*(1+$C$4)","v":72.8},{"$f":"$B$1*(1+E$2)*(1+$C$4)","v":62.400000000000006}]
["SH8",{"$f":"$B$1*(1+B$2)*(1+$D$4)","v":112},{"$f":"$B$1*(1+C$2)*(1+$D$4)","v":89.6},{"$f":"$B$1*(1+D$2)*(1+$D$4)","v":78.399999999999991},{"$f":"$B$1*(1+E$2)*(1+$D$4)","v":67.199999999999989}]
["SH9",{"$f":"$B$1*(1+B$2)*(1+$E$4)","v":124},{"$f":"$B$1*(1+C$2)*(1+$E$4)","v":99.2},{"$f":"$B$1*(1+D$2)*(1+$E$4)","v":86.8},{"$f":"$B$1*(1+E$2)*(1+$E$4)","v":74.400000000000006}]
["SH10",{"$f":"$B$1*(1+B$2)*(1+$F$4)","v":136},{"$f":"$B$1*(1+C$2)*(1+$F$4)","v":108.8},{"$f":"$B$1*(1+D$2)*(1+$F$4)","v":95.2},{"$f":"$B$1*(1+E$2)*(1+$F$4)","v":81.599999999999994}]
["VGS",29,23,15,10]
["AG",{"$f":"$B$1*(1+B$2)*($G$4)","v":32},{"$f":"$B$1*(1+C$2)*($G$4)","v":25.6},{"$f":"$B$1*(1+D$2)*($G$4)","v":22.400000000000002},{"$f":"$B$1*(1+E$2)*($G$4)","v":19.200000000000003}]
[]
[]
[]
["SG",0.75]
["HG",0.7]
["HG + U3",{"$f":"B26*B29","v":1.0499999999999998}]
["VÖ",1.1499999999999999]
["U3",1.5]
["NM",0.5]
["VÖ + U3",{"$f":"B28*B29","v":1.7249999999999999}]
["U3 + NM",{"$f":"B29*B30","v":0.75}]
["Einrtitt 15.",0.5]
["BVGS",0.25]
["Zusatzstunde",5]
[]
["Verpflegung","5 Tage","4 Tage","3 Tage","2 Tage","1 Tag"]
["Essen ",83.8,67,50.3,33.5,16.8]
["Bonuskarte",0,0,0,0,0]
["Vesper",10]
[]
[]
[]
[]
[]
[]
[]
[]
[]
[]
[]
[]
["Änderungen:"]
["in Version 4","Anmerkungen linksbündig"]
[null,"im Blatt \"Abrechnung\" Einbeziehung VGS bei Abrechnungssumme"]
[]
["Version 4.1.","Zelle Bescheid A15 gesperrt. Wert wird nun zwnagskäufig aus Tabellenblatt \"September\" bezogen"]
["Version 4.1.1","U3 Berechnung in Onlinegebührenberechnung; bei Aufnahme zum 15. U3 Berechnung auf 1. des Monats gesetzt"]
["Version 4.1.2","Berücksichtigung Geschwister bei An- oder Abmeldung (15. bzw. 20) auf Monatsersten festgesetzt"]
["Version 4.1.21","Bescheid \"briefkopftauglich\""]
["Version 4.2.1","Einfügen Spielgruppe \"SG\""]
["Version 5","Einfügen Halbtagesgruppe \"HG\"; Änderung SEPA; Betreuungsende U3"]
["Version 5.1.","Betreuungsende u3 rückgängig; Bescheid Betreuungsform um u3 ergänzt"]

{"sheet":"Bescheid","index":1,"n_rows":107,"n_cols":5,"rows_kept":107,"cut":false,"hidden":true,"merged":[[101,1,101,4],[19,0,19,4],[42,0,42,4],[91,1,91,2],[94,2,94,4],[100,1,100,4],[75,0,75,4],[76,0,76,4],[86,1,86,3],[88,1,88,4]]}
["Stadt Göppingen"]
["Referat Kinder und Jugend"]
["Pfarrstraße 11"]
["73033 Göppingen"]
[]
[]
["Stadtverwaltung * Postfach 1149 * 73033 Göppingen"]
["Herrn / Frau"]
["Vorname / Name"]
["Straße"]
["PLZ Wohnort",null,null,null,{"$f":"TODAY()","v":"2022-01-31"}]
[]
[]
[null,"vorläufiger Gebührenbescheid für die Zeit von"]
[{"$f":"DATE(YEAR(September!B4),MONTH(September!B4),DAY(1))","v":"2021-09-01"},"bis",{"$f":"DATE(YEAR(August!B4),MONTH(August!B4),DAY(31))","v":"2022-08-31"}]
[]
["Für die Betreuung und Verpflegung des Kindes"]
["???",null,"geboren am",{"$f":"August!B6","v":"00:00:00"}]
["in der städtischen Kindertagesstätte ",null,"(Name der Kita)"]
["werden nach der Satzung über die Erhebung von Gebühren für die Benutzung von Kindertageseinrichtungen der Stadt Göppingen in der Fassung vom 09.07.2015, die ab 01.04.2015 gültig ist, folgende Gebühren festgesetzt."]
[]
["fällig zum","gewählte Betreuungs-form","Betreuung","Verpflegung","Gesamtbetrag"]
[{"$f":"A15","v":"2021-09-01"},{"$f":"IF(September!C31=\"\",\"\",IF(September!C$33=\"\",September!C$31,CONCATENATE(September!C$31,\" + \",September!C$33)))","v":""},{"$f":"September!B43","v":0},{"$f":"IF(C23=0,0,September!B$44)","v":0},{"$f":"D23+C23","v":0}]
[{"$f":"DATE(YEAR(A23),MONTH(A23)+1,DAY(1))","v":"2021-10-01"},{"$f":"IF(C24=0,\"\",IF(Oktober!C31=0,\"\",IF(Oktober!C$33=\"\",Oktober!C$31,CONCATENATE(Oktober!C$31,\" + \",Oktober!C$33))))","v":""},{"$f":"Oktober!B$43","v":0},{"$f":"IF(C24=0,0,Oktober!B$44)","v":0},{"$f":"D24+C24","v":0}]
[{"$f":"DATE(YEAR(A24),MONTH(A24)+1,DAY(1))","v":"2021-11-01"},{"$f":"IF(C25=0,\"\",IF(November!C31=0,\"\",IF(November!C$33=\"\",November!C$31,CONCATENATE(November!C$31,\" + \",November!C$33))))","v":""},{"$f":"November!B$43","v":0},{"$f":"IF(C25=0,0,November!B$44)","v":0},0]
["2021-12-01",{"$f":"IF(C26=0,\"\",IF(Dezember!C31=0,\"\",IF(Dezember!C$33=\"\",Dezember!C$31,CONCATENATE(Dezember!C$31,\" + \",Dezember!C$33))))","v":""},{"$f":"Dezember!B$43","v":0},{"$f":"IF(C26=0,0,Dezember!B$44)","v":0},0]
["2022-01-01",{"$f":"IF(C27=0,\"\",IF(Januar!C31=0,\"\",IF(Januar!C$33=\"\",Januar!C$31,CONCATENATE(Januar!C$31,\" + \",Januar!C$33))))","v":""},{"$f":"Januar!B$43","v":0},{"$f":"IF(C27=0,0,Januar!B$44)","v":0},0]
["2022-02-01",{"$f":"IF(C28=0,\"\",IF(Februar!C31=0,\"\",IF(Februar!C$33=\"\",Februar!C$31,CONCATENATE(Februar!C$31,\" + \",Februar!C$33))))","v":""},{"$f":"Februar!B$43","v":0},{"$f":"IF(C28=0,0,Februar!B$44)","v":0},0]
["2022-03-01",{"$f":"IF(C29=0,\"\",IF(März!C31=0,\"\",IF(März!C$33=\"\",März!C$31,CONCATENATE(März!C$31,\" + \",März!C$33))))","v":""},{"$f":"März!B$43","v":0},{"$f":"IF(C29=0,0,März!B$44)","v":0},0]
["2022-04-01",{"$f":"IF(C30=0,\"\",IF(April!C31=0,\"\",IF(April!C$33=\"\",April!C$31,CONCATENATE(April!C$31,\" + \",April!C$33))))","v":""},{"$f":"April!B$43","v":0},{"$f":"IF(C30=0,0,April!B$44)","v":0},0]
["2022-05-01",{"$f":"IF(C31=0,\"\",IF(Mai!C31=0,\"\",IF(Mai!C$33=\"\",Mai!C$31,CONCATENATE(Mai!C$31,\" + \",Mai!C$33))))","v":""},{"$f":"Mai!B$43","v":0},{"$f":"IF(C31=0,0,Mai!B$44)","v":0},0]
["2022-06-01",{"$f":"IF(C32=0,\"\",IF(Juni!C31=0,\"\",IF(Juni!C$33=\"\",Juni!C$31,CONCATENATE(Juni!C$31,\" + \",Juni!C$33))))","v":""},{"$f":"Juni!B$43","v":0},{"$f":"IF(C32=0,0,Juni!B$44)","v":0},0]
["2022-07-01",{"$f":"IF(C33=0,\"\",IF(Juli!C31=0,\"\",IF(Juli!C$33=\"\",Juli!C$31,CONCATENATE(Juli!C$31,\" + \",Juli!C$33))))","v":""},{"$f":"Juli!B$43","v":0},{"$f":"IF(C33=0,0,Juli!B$44)","v":0},0]
["2022-08-01",{"$f":"IF(C34=0,\"\",IF(August!C31=0,\"\",IF(August!C$33=\"\",August!C$31,CONCATENATE(August!C$31,\" + \",August!C$33))))","v":""},{"$f":"August!B$43","v":0},{"$f":"IF(C34=0,0,August!B$44)","v":0},0]
["Gesamtbetrag Kinder-gartenjahr 2017/18",null,{"$f":"SUM(C23:C34)","v":0},{"$f":"SUM(D23:D34)","v":0},{"$f":"SUM(E23:E34)","v":0}]
[]
["Bitte überweisen Sie den Monatsbetrag jeweils zum 1. des Monats unter der PK-Nummer"]
["Eingabe der PK-Nummer","auf folgende Bankverbindung BIC: GOPSDE6GXXX;"]
[" IBAN: DE26610500000000000110. Sofern Sie uns ein SEPA-Lastschriftmandat erteilt "]
["haben, werden wir die Beträge zum Fälligkeitstag einziehen."]
[]
["Rechtsbehelfsbelehrung:"]
["Gegen diesen Bescheid können Sie binnen eines Monats nach seiner Bekanntgabe  Widerspruch einlegen. Der Widerspruch ist schriftlich oder zur Niederschrift bei der Stadt Göppingen - Referat Kinder und Jugend - Pfarrstraße 11 in 73033 Göppingen oder einer anderen Dienststelle der Stadt Göppingen einzulegen. "]
[]
["Mit freundlichen Grüßen"]
[]
["Stadtverwaltung Göppingen"]
["Referat Kinder und Jugend"]
[]
["Rückfragen zur Betreuung:",null,"in der jeweiligen Kita"]
["Rückfragen zur Gebührenveranlagung:",null,"Frau Ayerle, Ref. Kinder + Jugend,  Tel.: 07161 650-442"]
["Rückfragen zum Zahlungseingang:",null,"Herr Keller, Stadtkasse, Tel.: 07161 650-533"]
[]
[]
[]
["Stadt Göppingen"]
["Referat Kinder und Jugend"]
["Pfarrstraße 11"]
["73033 Göppingen"]
[]
[]
[]
[]
[]
["Stadtkasse Göppingen"]
["Hauptstraße 1"]
["73033 Göppingen"]
[]
[]
[]
["SEPA-Lastschriftmandat (wiederkehrende Zahlungen)"]
["Gläubiger-Identifikationsnummer: DE 37ZZZ00000229678"]
[]
["Mandatsreferenz:",{"$f":"A38","v":"Eingabe der PK-Nummer"}]
[]
["Ich ermächtige (Wir ermächtigen) die Stadt Göppingen Zahlungen von meinem (unserem) Konto mittels SEPA-Lastschrift einzuziehen. Zugleich weise ich mein (weisen wir unser) Kreditinstitut an, die von der Stadt Göppingen auf mein (unser) Konto gezogene Lastschrift einzulösen."]
["Hinweis: Ich kann (Wir können) innerhalb von acht Wochen, beginnend mit dem Belastungsdatum, die Erstattung des belasteten Betrages verlangen. Es gelten dabei die mit meinem (unserem) Kreditinstitut vereinbarten Bedingungen."]
[]
["Name, Vorname"]
[]
["Straße + Hausnummer"]
[]
["PLZ + Ort"]
[]
["Kreditinstitut (Name)"]
[]
["BIC","__ __ __ __ __ __ __ __ __ __ __"]
[]
["IBAN","DE __ __ | __ __ __ __ | __ __ __ __ | __ __ __ __ | __ __ __ __ | __ __"]
[]
[]
["Göppingen, den ",{"$f":"TODAY()","v":"2022-01-31"}]
[]
[]
[null,null,"Unterschrift(en) Kontoinhaber  (Vor- und Zuname)"]
[]
[]
[]
["interne Vermerke und Informationen:"]
[]
["Name des Kindes:",{"$f":"A18","v":"???"}]
["Geburtsdatum Kind:",{"$f":"D18","v":"00:00:00"}]
["Kindertagesstätte:",{"$f":"C19","v":"(Name der Kita)"}]
[]
["Erziehungsberechtigte(r):",{"$f":"A9","v":"Vorname / Name"}]
[null,{"$f":"A10","v":"Straße"}]
[null,{"$f":"A11","v":"PLZ Wohnort"}]

{"sheet":"Online_Gebührenberechnung","index":2,"n_rows":42,"n_cols":22,"rows_kept":42,"cut":false,"hidden":true,"merged":[[0,10,0,12]]}
[null,null,null,null,null,null,null,null,null,null,{"$f":"September!B4","v":"2021-09-01"},null,null,null,{"$f":"SUM(O8:O35)","v":0},null,null,null,{"$f":"SUM(S8:S35)","v":0},{"$f":"SUM(T8:T35)","v":0},{"$f":"SUM(U8:U35)","v":0}]
[]
["Gruppe 1"]
[]
[]
[]
["Lfd. Nummer","Neuaufnahme / Abmeldung","Namen","Geburts-datum","Kind / Fam.","Betreuungsform","Differenz Monate","Grundbetrag Monat","VÖ","U3","Nachmittag","Eintritt /Austritt 15.","Basisbetrag","Zusatz-Einzelstd.","Betreuung \ninsgesamt","Bonuskarte (ganzer Monat)","Anzahl Essen pro Woche","Vesper","Verpflegung insgesamt","Monatsgebühr","Erstattung \n1 €-Essen","Anmerkungen"]
[1,null,{"$f":"DATE(YEAR(September!B$4),MONTH(September!B$4),DAY(1))","v":"2021-09-01"},{"$f":"September!B$6","v":"00:00:00"},{"$f":"IF(September!C$31=\"\",\"\",IF(COUNTIF(September!C$9:C$12,\"Ja\")=4,4,COUNTIF(September!C$9:C$12,\"Ja\")+1))","v":""},{"$f":"IF(September!C$31=\"\",\"\",IF(OR(September!C$31=\"VÖ\",September!C$31=\"NM\"),\"RG\",September!C$31))","v":""},{"$f":"DATEDIF(D8,C8,\"m\")","v":1460},{"$f":"IF(E8=\"\",0,INDEX(Grunddaten!$B$9:$E$19,MATCH(F8,Grunddaten!$A$9:$A$19,0),MATCH(E8,Grunddaten!$B$8:$E$8,0)))","v":0},{"$f":"IF(September!C$31=\"VÖ\",\"x\",\"\")","v":""},{"$f":"IF(September!B$7=\"JA\",\"x\",\"\")","v":""},{"$f":"IF(September!C$31=\"NM\",\"x\",\"\")","v":""},null,{"$f":"ROUND(IF(F8=\"SG\",H8*Grunddaten!$B$25,(IF(L8=\"X\",(IF(AND(J8=\"X\",K8=\"X\"),H8*Grunddaten!$B$32,IF(AND(I8=\"X\",J8=\"X\"),H8*Grunddaten!$B$31,IF(I8=\"X\",H8*Grunddaten!$B$28,IF(J8=\"X\",H8*Grunddaten!$B$29,IF(K8=\"X\",H8*Grunddaten!$B$30,H8)))))*Grunddaten!$B$33),IF(AND(J8=\"X\",K8=\"X\"),H8*Grunddaten!$B$32,IF(AND(I8=\"X\",J8=\"X\"),H8*Grunddaten!$B$31,IF(I8=\"X\",H8*Grunddaten!$B$28,IF(J8=\"X\",H8*Grunddaten!$B$29,IF(K8=\"X\",H8*Grunddaten!$B$30,H8)))))))),2)","v":0},null,{"$f":"M8+(N8*Grunddaten!B$35)","v":0},{"$f":"IF(September!B$40=\"\",\"\",September!B$40)","v":""},{"$f":"IF(September!B$37=\"\",\"\",September!B$37)","v":""},{"$f":"IF(September!B$38=\"\",\"\",September!B$38)","v":""},{"$f":"IF(P8=\"\",IF(Q8=5,Grunddaten!$B$38,IF(Q8=4,Grunddaten!$C$38,IF(Q8=3,Grunddaten!$D$38,IF(Q8=2,Grunddaten!$E$38,IF(Q8=1,Grunddaten!$F$38,IF(Q8=\"\",0)))))),(IF(Q8=5,Grunddaten!$B$39,IF(Q8=4,Grunddaten!$C$39,IF(Q8=3,Grunddaten!$D$39,IF(Q8=2,Grunddaten!$E$39,IF(Q8=1,Grunddaten!$F$39,IF(Q8=\"\",0))))))))+IF(R8=\"\",0,Grunddaten!$B$40)","v":0},{"$f":"S8+O8","v":0},{"$f":"IF(P8=\"x\",IF(Q8=5,Grunddaten!$B$38-Grunddaten!$B$39,IF(Q8=4,Grunddaten!$C$38-Grunddaten!$C$39,IF(Q8=3,Grunddaten!$D$38-Grunddaten!$D$39,IF(Q8=2,Grunddaten!$E$38-Grunddaten!$E$39,IF(Q8=1,Grunddaten!$F$38-Grunddaten!$F$39))))),\"\")","v":""}]
[2,null,{"$f":"DATE(YEAR(Oktober!B$4),MONTH(Oktober!B$4),DAY(1))","v":"2021-10-01"},{"$f":"Oktober!B$6","v":"00:00:00"},{"$f":"IF(Oktober!C$31=\"\",\"\",IF(COUNTIF(Oktober!C$9:C$12,\"Ja\")=4,4,COUNTIF(Oktober!C$9:C$12,\"Ja\")+1))","v":""},{"$f":"IF(Oktober!C$31=\"\",\"\",IF(OR(Oktober!C$31=\"VÖ\",Oktober!C$31=\"NM\"),\"RG\",Oktober!C$31))","v":""},{"$f":"DATEDIF(D9,C9,\"m\")","v":1461},{"$f":"IF(E9=\"\",0,INDEX(Grunddaten!$B$9:$E$19,MATCH(F9,Grunddaten!$A$9:$A$19,0),MATCH(E9,Grunddaten!$B$8:$E$8,0)))","v":0},{"$f":"IF(Oktober!C31=\"VÖ\",\"x\",\"\")","v":""},{"$f":"IF(Oktober!B$7=\"JA\",\"x\",\"\")","v":""},{"$f":"IF(Oktober!C$31=\"NM\",\"x\",\"\")","v":""},null,{"$f":"ROUND(IF(F9=\"SG\",H9*Grunddaten!$B$25,(IF(L9=\"X\",(IF(AND(J9=\"X\",K9=\"X\"),H9*Grunddaten!$B$32,IF(AND(I9=\"X\",J9=\"X\"),H9*Grunddaten!$B$31,IF(I9=\"X\",H9*Grunddaten!$B$28,IF(J9=\"X\",H9*Grunddaten!$B$29,IF(K9=\"X\",H9*Grunddaten!$B$30,H9)))))*Grunddaten!$B$33),IF(AND(J9=\"X\",K9=\"X\"),H9*Grunddaten!$B$32,IF(AND(I9=\"X\",J9=\"X\"),H9*Grunddaten!$B$31,IF(I9=\"X\",H9*Grunddaten!$B$28,IF(J9=\"X\",H9*Grunddaten!$B$29,IF(K9=\"X\",H9*Grunddaten!$B$30,H9)))))))),2)","v":0},null,{"$f":"M9+(N9*Grunddaten!B$35)","v":0},{"$f":"IF(Oktober!B$40=\"\",\"\",Oktober!B$40)","v":""},{"$f":"IF(Oktober!B$37=\"\",\"\",Oktober!B$37)","v":0},{"$f":"IF(Oktober!B$38=\"\",\"\",Oktober!B$38)","v":""},{"$f":"IF(P9=\"\",IF(Q9=5,Grunddaten!$B$38,IF(Q9=4,Grunddaten!$C$38,IF(Q9=3,Grunddaten!$D$38,IF(Q9=2,Grunddaten!$E$38,IF(Q9=1,Grunddaten!$F$38,IF(Q9=\"\",0)))))),(IF(Q9=5,Grunddaten!$B$39,IF(Q9=4,Grunddaten!$C$39,IF(Q9=3,Grunddaten!$D$39,IF(Q9=2,Grunddaten!$E$39,IF(Q9=1,Grunddaten!$F$39,IF(Q9=\"\",0))))))))+IF(R9=\"\",0,Grunddaten!$B$40)","v":0},{"$f":"S9+O9","v":0},{"$f":"IF(P9=\"x\",IF(Q9=5,Grunddaten!$B$38-Grunddaten!$B$39,IF(Q9=4,Grunddaten!$C$38-Grunddaten!$C$39,IF(Q9=3,Grunddaten!$D$38-Grunddaten!$D$39,IF(Q9=2,Grunddaten!$E$38-Grunddaten!$E$39,IF(Q9=1,Grunddaten!$F$38-Grunddaten!$F$39))))),\"\")","v":""}]
[3,null,{"$f":"DATE(YEAR(November!B$4),MONTH(November!B$4),DAY(1))","v":"2021-11-01"},{"$f":"November!B$6","v":"00:00:00"},{"$f":"IF(November!C$31=\"\",\"\",IF(COUNTIF(November!C$9:C$12,\"Ja\")=4,4,COUNTIF(November!C$9:C$12,\"Ja\")+1))","v":""},{"$f":"IF(November!C$31=\"\",\"\",IF(OR(November!C$31=\"VÖ\",November!C$31=\"NM\"),\"RG\",November!C$31))","v":""},1462,{"$f":"IF(E10=\"\",0,INDEX(Grunddaten!$B$9:$E$19,MATCH(F10,Grunddaten!$A$9:$A$19,0),MATCH(E10,Grunddaten!$B$8:$E$8,0)))","v":0},{"$f":"IF(November!C31=\"VÖ\",\"x\",\"\")","v":""},{"$f":"IF(November!B$7=\"JA\",\"x\",\"\")","v":""},{"$f":"IF(November!C$31=\"NM\",\"x\",\"\")","v":""},null,{"$f":"ROUND(IF(F10=\"SG\",H10*Grunddaten!$B$25,(IF(L10=\"X\",(IF(AND(J10=\"X\",K10=\"X\"),H10*Grunddaten!$B$32,IF(AND(I10=\"X\",J10=\"X\"),H10*Grunddaten!$B$31,IF(I10=\"X\",H10*Grunddaten!$B$28,IF(J10=\"X\",H10*Grunddaten!$B$29,IF(K10=\"X\",H10*Grunddaten!$B$30,H10)))))*Grunddaten!$B$33),IF(AND(J10=\"X\",K10=\"X\"),H10*Grunddaten!$B$32,IF(AND(I10=\"X\",J10=\"X\"),H10*Grunddaten!$B$31,IF(I10=\"X\",H10*Grunddaten!$B$28,IF(J10=\"X\",H10*Grunddaten!$B$29,IF(K10=\"X\",H10*Grunddaten!$B$30,H10)))))))),2)","v":0},null,{"$f":"M10+(N10*Grunddaten!B$35)","v":0},{"$f":"IF(November!B$40=\"\",\"\",November!B$40)","v":""},{"$f":"IF(November!B$37=\"\",\"\",November!B$37)","v":0},{"$f":"IF(November!B$38=\"\",\"\",November!B$38)","v":""},{"$f":"IF(P10=\"\",IF(Q10=5,Grunddaten!$B$38,IF(Q10=4,Grunddaten!$C$38,IF(Q10=3,Grunddaten!$D$38,IF(Q10=2,Grunddaten!$E$38,IF(Q10=1,Grunddaten!$F$38,IF(Q10=\"\",0)))))),(IF(Q10=5,Grunddaten!$B$39,IF(Q10=4,Grunddaten!$C$39,IF(Q10=3,Grunddaten!$D$39,IF(Q10=2,Grunddaten!$E$39,IF(Q10=1,Grunddaten!$F$39,IF(Q10=\"\",0))))))))+IF(R10=\"\",0,Grunddaten!$B$40)","v":0},0,{"$f":"IF(P10=\"x\",IF(Q10=5,Grunddaten!$B$38-Grunddaten!$B$39,IF(Q10=4,Grunddaten!$C$38-Grunddaten!$C$39,IF(Q10=3,Grunddaten!$D$38-Grunddaten!$D$39,IF(Q10=2,Grunddaten!$E$38-Grunddaten!$E$39,IF(Q10=1,Grunddaten!$F$38-Grunddaten!$F$39))))),\"\")","v":""}]
[4,null,{"$f":"DATE(YEAR(Dezember!B$4),MONTH(Dezember!B$4),DAY(1))","v":"2021-12-01"},{"$f":"Dezember!B$6","v":"00:00:00"},{"$f":"IF(Dezember!C$31=\"\",\"\",IF(COUNTIF(Dezember!C$9:C$12,\"Ja\")=4,4,COUNTIF(Dezember!C$9:C$12,\"Ja\")+1))","v":""},{"$f":"IF(Dezember!C$31=\"\",\"\",IF(OR(Dezember!C$31=\"VÖ\",Dezember!C$31=\"NM\"),\"RG\",Dezember!C$31))","v":""},1463,{"$f":"IF(E11=\"\",0,INDEX(Grunddaten!$B$9:$E$19,MATCH(F11,Grunddaten!$A$9:$A$19,0),MATCH(E11,Grunddaten!$B$8:$E$8,0)))","v":0},{"$f":"IF(Dezember!C31=\"VÖ\",\"x\",\"\")","v":""},{"$f":"IF(Dezember!B$7=\"JA\",\"x\",\"\")","v":""},{"$f":"IF(Dezember!C$31=\"NM\",\"x\",\"\")","v":""},null,{"$f":"ROUND(IF(F11=\"SG\",H11*Grunddaten!$B$25,(IF(L11=\"X\",(IF(AND(J11=\"X\",K11=\"X\"),H11*Grunddaten!$B$32,IF(AND(I11=\"X\",J11=\"X\"),H11*Grunddaten!$B$31,IF(I11=\"X\",H11*Grunddaten!$B$28,IF(J11=\"X\",H11*Grunddaten!$B$29,IF(K11=\"X\",H11*Grunddaten!$B$30,H11)))))*Grunddaten!$B$33),IF(AND(J11=\"X\",K11=\"X\"),H11*Grunddaten!$B$32,IF(AND(I11=\"X\",J11=\"X\"),H11*Grunddaten!$B$31,IF(I11=\"X\",H11*Grunddaten!$B$28,IF(J11=\"X\",H11*Grunddaten!$B$29,IF(K11=\"X\",H11*Grunddaten!$B$30,H11)))))))),2)","v":0},null,{"$f":"M11+(N11*Grunddaten!B$35)","v":0},{"$f":"IF(Dezember!B$40=\"\",\"\",Dezember!B$40)","v":""},{"$f":"IF(Dezember!B$37=\"\",\"\",Dezember!B$37)","v":0},{"$f":"IF(Dezember!B$38=\"\",\"\",Dezember!B$38)","v":""},{"$f":"IF(P11=\"\",IF(Q11=5,Grunddaten!$B$38,IF(Q11=4,Grunddaten!$C$38,IF(Q11=3,Grunddaten!$D$38,IF(Q11=2,Grunddaten!$E$38,IF(Q11=1,Grunddaten!$F$38,IF(Q11=\"\",0)))))),(IF(Q11=5,Grunddaten!$B$39,IF(Q11=4,Grunddaten!$C$39,IF(Q11=3,Grunddaten!$D$39,IF(Q11=2,Grunddaten!$E$39,IF(Q11=1,Grunddaten!$F$39,IF(Q11=\"\",0))))))))+IF(R11=\"\",0,Grunddaten!$B$40)","v":0},0,{"$f":"IF(P11=\"x\",IF(Q11=5,Grunddaten!$B$38-Grunddaten!$B$39,IF(Q11=4,Grunddaten!$C$38-Grunddaten!$C$39,IF(Q11=3,Grunddaten!$D$38-Grunddaten!$D$39,IF(Q11=2,Grunddaten!$E$38-Grunddaten!$E$39,IF(Q11=1,Grunddaten!$F$38-Grunddaten!$F$39))))),\"\")","v":""}]
[5,null,{"$f":"DATE(YEAR(Januar!B$4),MONTH(Januar!B$4),DAY(1))","v":"2022-01-01"},{"$f":"Januar!B$6","v":"00:00:00"},{"$f":"IF(Januar!C$31=\"\",\"\",IF(COUNTIF(Januar!C$9:C$12,\"Ja\")=4,4,COUNTIF(Januar!C$9:C$12,\"Ja\")+1))","v":""},{"$f":"IF(Januar!C$31=\"\",\"\",IF(OR(Januar!C$31=\"VÖ\",Januar!C$31=\"NM\"),\"RG\",Januar!C$31))","v":""},1464,{"$f":"IF(E12=\"\",0,INDEX(Grunddaten!$B$9:$E$19,MATCH(F12,Grunddaten!$A$9:$A$19,0),MATCH(E12,Grunddaten!$B$8:$E$8,0)))","v":0},{"$f":"IF(Januar!C31=\"VÖ\",\"x\",\"\")","v":""},{"$f":"IF(Januar!B$7=\"JA\",\"x\",\"\")","v":""},{"$f":"IF(Januar!C$31=\"NM\",\"x\",\"\")","v":""},null,{"$f":"ROUND(IF(F12=\"SG\",H12*Grunddaten!$B$25,(IF(L12=\"X\",(IF(AND(J12=\"X\",K12=\"X\"),H12*Grunddaten!$B$32,IF(AND(I12=\"X\",J12=\"X\"),H12*Grunddaten!$B$31,IF(I12=\"X\",H12*Grunddaten!$B$28,IF(J12=\"X\",H12*Grunddaten!$B$29,IF(K12=\"X\",H12*Grunddaten!$B$30,H12)))))*Grunddaten!$B$33),IF(AND(J12=\"X\",K12=\"X\"),H12*Grunddaten!$B$32,IF(AND(I12=\"X\",J12=\"X\"),H12*Grunddaten!$B$31,IF(I12=\"X\",H12*Grunddaten!$B$28,IF(J12=\"X\",H12*Grunddaten!$B$29,IF(K12=\"X\",H12*Grunddaten!$B$30,H12)))))))),2)","v":0},null,{"$f":"M12+(N12*Grunddaten!B$35)","v":0},{"$f":"IF(Januar!B$40=\"\",\"\",Januar!B$40)","v":""},{"$f":"IF(Januar!B$37=\"\",\"\",Januar!B$37)","v":0},{"$f":"IF(Januar!B$38=\"\",\"\",Januar!B$38)","v":""},{"$f":"IF(P12=\"\",IF(Q12=5,Grunddaten!$B$38,IF(Q12=4,Grunddaten!$C$38,IF(Q12=3,Grunddaten!$D$38,IF(Q12=2,Grunddaten!$E$38,IF(Q12=1,Grunddaten!$F$38,IF(Q12=\"\",0)))))),(IF(Q12=5,Grunddaten!$B$39,IF(Q12=4,Grunddaten!$C$39,IF(Q12=3,Grunddaten!$D$39,IF(Q12=2,Grunddaten!$E$39,IF(Q12=1,Grunddaten!$F$39,IF(Q12=\"\",0))))))))+IF(R12=\"\",0,Grunddaten!$B$40)","v":0},0,{"$f":"IF(P12=\"x\",IF(Q12=5,Grunddaten!$B$38-Grunddaten!$B$39,IF(Q12=4,Grunddaten!$C$38-Grunddaten!$C$39,IF(Q12=3,Grunddaten!$D$38-Grunddaten!$D$39,IF(Q12=2,Grunddaten!$E$38-Grunddaten!$E$39,IF(Q12=1,Grunddaten!$F$38-Grunddaten!$F$39))))),\"\")","v":""}]
[6,null,{"$f":"DATE(YEAR(Februar!B$4),MONTH(Februar!B$4),DAY(1))","v":"2022-02-01"},{"$f":"Februar!B$6","v":"00:00:00"},{"$f":"IF(Februar!C$31=\"\",\"\",IF(COUNTIF(Februar!C$9:C$12,\"Ja\")=4,4,COUNTIF(Februar!C$9:C$12,\"Ja\")+1))","v":""},{"$f":"IF(Februar!C$31=\"\",\"\",IF(OR(Februar!C$31=\"VÖ\",Februar!C$31=\"NM\"),\"RG\",Februar!C$31))","v":""},1465,{"$f":"IF(E13=\"\",0,INDEX(Grunddaten!$B$9:$E$19,MATCH(F13,Grunddaten!$A$9:$A$19,0),MATCH(E13,Grunddaten!$B$8:$E$8,0)))","v":0},{"$f":"IF(Februar!C31=\"VÖ\",\"x\",\"\")","v":""},{"$f":"IF(Februar!B$7=\"JA\",\"x\",\"\")","v":""},{"$f":"IF(Februar!C$31=\"NM\",\"x\",\"\")","v":""},null,{"$f":"ROUND(IF(F13=\"SG\",H13*Grunddaten!$B$25,(IF(L13=\"X\",(IF(AND(J13=\"X\",K13=\"X\"),H13*Grunddaten!$B$32,IF(AND(I13=\"X\",J13=\"X\"),H13*Grunddaten!$B$31,IF(I13=\"X\",H13*Grunddaten!$B$28,IF(J13=\"X\",H13*Grunddaten!$B$29,IF(K13=\"X\",H13*Grunddaten!$B$30,H13)))))*Grunddaten!$B$33),IF(AND(J13=\"X\",K13=\"X\"),H13*Grunddaten!$B$32,IF(AND(I13=\"X\",J13=\"X\"),H13*Grunddaten!$B$31,IF(I13=\"X\",H13*Grunddaten!$B$28,IF(J13=\"X\",H13*Grunddaten!$B$29,IF(K13=\"X\",H13*Grunddaten!$B$30,H13)))))))),2)","v":0},null,{"$f":"M13+(N13*Grunddaten!B$35)","v":0},{"$f":"IF(Februar!B$40=\"\",\"\",Februar!B$40)","v":""},{"$f":"IF(Februar!B$37=\"\",\"\",Februar!B$37)","v":0},{"$f":"IF(Februar!B$38=\"\",\"\",Februar!B$38)","v":""},{"$f":"IF(P13=\"\",IF(Q13=5,Grunddaten!$B$38,IF(Q13=4,Grunddaten!$C$38,IF(Q13=3,Grunddaten!$D$38,IF(Q13=2,Grunddaten!$E$38,IF(Q13=1,Grunddaten!$F$38,IF(Q13=\"\",0)))))),(IF(Q13=5,Grunddaten!$B$39,IF(Q13=4,Grunddaten!$C$39,IF(Q13=3,Grunddaten!$D$39,IF(Q13=2,Grunddaten!$E$39,IF(Q13=1,Grunddaten!$F$39,IF(Q13=\"\",0))))))))+IF(R13=\"\",0,Grunddaten!$B$40)","v":0},0,{"$f":"IF(P13=\"x\",IF(Q13=5,Grunddaten!$B$38-Grunddaten!$B$39,IF(Q13=4,Grunddaten!$C$38-Grunddaten!$C$39,IF(Q13=3,Grunddaten!$D$38-Grunddaten!$D$39,IF(Q13=2,Grunddaten!$E$38-Grunddaten!$E$39,IF(Q13=1,Grunddaten!$F$38-Grunddaten!$F$39))))),\"\")","v":""}]
[7,null,{"$f":"DATE(YEAR(März!B$4),MONTH(März!B$4),DAY(1))","v":"2022-03-01"},{"$f":"März!B$6","v":"00:00:00"},{"$f":"IF(März!C$31=\"\",\"\",IF(COUNTIF(März!C$9:C$12,\"Ja\")=4,4,COUNTIF(März!C$9:C$12,\"Ja\")+1))","v":""},{"$f":"IF(März!C$31=\"\",\"\",IF(OR(März!C$31=\"VÖ\",März!C$31=\"NM\"),\"RG\",März!C$31))","v":""},1466,{"$f":"IF(E14=\"\",0,INDEX(Grunddaten!$B$9:$E$19,MATCH(F14,Grunddaten!$A$9:$A$19,0),MATCH(E14,Grunddaten!$B$8:$E$8,0)))","v":0},{"$f":"IF(März!C31=\"VÖ\",\"x\",\"\")","v":""},{"$f":"IF(März!B$7=\"JA\",\"x\",\"\")","v":""},{"$f":"IF(März!C$31=\"NM\",\"x\",\"\")","v":""},null,{"$f":"ROUND(IF(F14=\"SG\",H14*Grunddaten!$B$25,(IF(L14=\"X\",(IF(AND(J14=\"X\",K14=\"X\"),H14*Grunddaten!$B$32,IF(AND(I14=\"X\",J14=\"X\"),H14*Grunddaten!$B$31,IF(I14=\"X\",H14*Grunddaten!$B$28,IF(J14=\"X\",H14*Grunddaten!$B$29,IF(K14=\"X\",H14*Grunddaten!$B$30,H14)))))*Grunddaten!$B$33),IF(AND(J14=\"X\",K14=\"X\"),H14*Grunddaten!$B$32,IF(AND(I14=\"X\",J14=\"X\"),H14*Grunddaten!$B$31,IF(I14=\"X\",H14*Grunddaten!$B$28,IF(J14=\"X\",H14*Grunddaten!$B$29,IF(K14=\"X\",H14*Grunddaten!$B$30,H14)))))))),2)","v":0},null,{"$f":"M14+(N14*Grunddaten!B$35)","v":0},{"$f":"IF(März!B$40=\"\",\"\",März!B$40)","v":""},{"$f":"IF(März!B$37=\"\",\"\",März!B$37)","v":0},{"$f":"IF(März!B$38=\"\",\"\",März!B$38)","v":""},{"$f":"IF(P14=\"\",IF(Q14=5,Grunddaten!$B$38,IF(Q14=4,Grunddaten!$C$38,IF(Q14=3,Grunddaten!$D$38,IF(Q14=2,Grunddaten!$E$38,IF(Q14=1,Grunddaten!$F$38,IF(Q14=\"\",0)))))),(IF(Q14=5,Grunddaten!$B$39,IF(Q14=4,Grunddaten!$C$39,IF(Q14=3,Grunddaten!$D$39,IF(Q14=2,Grunddaten!$E$39,IF(Q14=1,Grunddaten!$F$39,IF(Q14=\"\",0))))))))+IF(R14=\"\",0,Grunddaten!$B$40)","v":0},0,{"$f":"IF(P14=\"x\",IF(Q14=5,Grunddaten!$B$38-Grunddaten!$B$39,IF(Q14=4,Grunddaten!$C$38-Grunddaten!$C$39,IF(Q14=3,Grunddaten!$D$38-Grunddaten!$D$39,IF(Q14=2,Grunddaten!$E$38-Grunddaten!$E$39,IF(Q14=1,Grunddaten!$F$38-Grunddaten!$F$39))))),\"\")","v":""}]
[8,null,{"$f":"DATE(YEAR(April!B$4),MONTH(April!B$4),DAY(1))","v":"2022-04-01"},{"$f":"April!B$6","v":"00:00:00"},{"$f":"IF(April!C$31=\"\",\"\",IF(COUNTIF(April!C$9:C$12,\"Ja\")=4,4,COUNTIF(April!C$9:C$12,\"Ja\")+1))","v":""},{"$f":"IF(April!C$31=\"\",\"\",IF(OR(April!C$31=\"VÖ\",April!C$31=\"NM\"),\"RG\",April!C$31))","v":""},1467,{"$f":"IF(E15=\"\",0,INDEX(Grunddaten!$B$9:$E$19,MATCH(F15,Grunddaten!$A$9:$A$19,0),MATCH(E15,Grunddaten!$B$8:$E$8,0)))","v":0},{"$f":"IF(April!C31=\"VÖ\",\"x\",\"\")","v":""},{"$f":"IF(April!B$7=\"JA\",\"x\",\"\")","v":""},{"$f":"IF(April!C$31=\"NM\",\"x\",\"\")","v":""},null,{"$f":"ROUND(IF(F15=\"SG\",H15*Grunddaten!$B$25,(IF(L15=\"X\",(IF(AND(J15=\"X\",K15=\"X\"),H15*Grunddaten!$B$32,IF(AND(I15=\"X\",J15=\"X\"),H15*Grunddaten!$B$31,IF(I15=\"X\",H15*Grunddaten!$B$28,IF(J15=\"X\",H15*Grunddaten!$B$29,IF(K15=\"X\",H15*Grunddaten!$B$30,H15)))))*Grunddaten!$B$33),IF(AND(J15=\"X\",K15=\"X\"),H15*Grunddaten!$B$32,IF(AND(I15=\"X\",J15=\"X\"),H15*Grunddaten!$B$31,IF(I15=\"X\",H15*Grunddaten!$B$28,IF(J15=\"X\",H15*Grunddaten!$B$29,IF(K15=\"X\",H15*Grunddaten!$B$30,H15)))))))),2)","v":0},null,{"$f":"M15+(N15*Grunddaten!B$35)","v":0},{"$f":"IF(April!B$40=\"\",\"\",April!B$40)","v":""},{"$f":"IF(April!B$37=\"\",\"\",April!B$37)","v":0},{"$f":"IF(April!B$38=\"\",\"\",April!B$38)","v":""},{"$f":"IF(P15=\"\",IF(Q15=5,Grunddaten!$B$38,IF(Q15=4,Grunddaten!$C$38,IF(Q15=3,Grunddaten!$D$38,IF(Q15=2,Grunddaten!$E$38,IF(Q15=1,Grunddaten!$F$38,IF(Q15=\"\",0)))))),(IF(Q15=5,Grunddaten!$B$39,IF(Q15=4,Grunddaten!$C$39,IF(Q15=3,Grunddaten!$D$39,IF(Q15=2,Grunddaten!$E$39,IF(Q15=1,Grunddaten!$F$39,IF(Q15=\"\",0))))))))+IF(R15=\"\",0,Grunddaten!$B$40)","v":0},0,{"$f":"IF(P15=\"x\",IF(Q15=5,Grunddaten!$B$38-Grunddaten!$B$39,IF(Q15=4,Grunddaten!$C$38-Grunddaten!$C$39,IF(Q15=3,Grunddaten!$D$38-Grunddaten!$D$39,IF(Q15=2,Grunddaten!$E$38-Grunddaten!$E$39,IF(Q15=1,Grunddaten!$F$38-Grunddaten!$F$39))))),\"\")","v":""}]
[9,null,{"$f":"DATE(YEAR(Mai!B$4),MONTH(Mai!B$4),DAY(1))","v":"2022-05-01"},{"$f":"Mai!B$6","v":"00:00:00"},{"$f":"IF(Mai!C$31=\"\",\"\",IF(COUNTIF(Mai!C$9:C$12,\"Ja\")=4,4,COUNTIF(Mai!C$9:C$12,\"Ja\")+1))","v":""},{"$f":"IF(Mai!C$31=\"\",\"\",IF(OR(Mai!C$31=\"VÖ\",Mai!C$31=\"NM\"),\"RG\",Mai!C$31))","v":""},1468,{"$f":"IF(E16=\"\",0,INDEX(Grunddaten!$B$9:$E$19,MATCH(F16,Grunddaten!$A$9:$A$19,0),MATCH(E16,Grunddaten!$B$8:$E$8,0)))","v":0},{"$f":"IF(Mai!C31=\"VÖ\",\"x\",\"\")","v":""},{"$f":"IF(Mai!B$7=\"JA\",\"x\",\"\")","v":""},{"$f":"IF(Mai!C$31=\"NM\",\"x\",\"\")","v":""},null,{"$f":"ROUND(IF(F16=\"SG\",H16*Grunddaten!$B$25,(IF(L16=\"X\",(IF(AND(J16=\"X\",K16=\"X\"),H16*Grunddaten!$B$32,IF(AND(I16=\"X\",J16=\"X\"),H16*Grunddaten!$B$31,IF(I16=\"X\",H16*Grunddaten!$B$28,IF(J16=\"X\",H16*Grunddaten!$B$29,IF(K16=\"X\",H16*Grunddaten!$B$30,H16)))))*Grunddaten!$B$33),IF(AND(J16=\"X\",K16=\"X\"),H16*Grunddaten!$B$32,IF(AND(I16=\"X\",J16=\"X\"),H16*Grunddaten!$B$31,IF(I16=\"X\",H16*Grunddaten!$B$28,IF(J16=\"X\",H16*Grunddaten!$B$29,IF(K16=\"X\",H16*Grunddaten!$B$30,H16)))))))),2)","v":0},null,{"$f":"M16+(N16*Grunddaten!B$35)","v":0},{"$f":"IF(Mai!B$40=\"\",\"\",Mai!B$40)","v":""},{"$f":"IF(Mai!B$37=\"\",\"\",Mai!B$37)","v":0},{"$f":"IF(Mai!B$38=\"\",\"\",Mai!B$38)","v":""},{"$f":"IF(P16=\"\",IF(Q16=5,Grunddaten!$B$38,IF(Q16=4,Grunddaten!$C$38,IF(Q16=3,Grunddaten!$D$38,IF(Q16=2,Grunddaten!$E$38,IF(Q16=1,Grunddaten!$F$38,IF(Q16=\"\",0)))))),(IF(Q16=5,Grunddaten!$B$39,IF(Q16=4,Grunddaten!$C$39,IF(Q16=3,Grunddaten!$D$39,IF(Q16=2,Grunddaten!$E$39,IF(Q16=1,Grunddaten!$F$39,IF(Q16=\"\",0))))))))+IF(R16=\"\",0,Grunddaten!$B$40)","v":0},0,{"$f":"IF(P16=\"x\",IF(Q16=5,Grunddaten!$B$38-Grunddaten!$B$39,IF(Q16=4,Grunddaten!$C$38-Grunddaten!$C$39,IF(Q16=3,Grunddaten!$D$38-Grunddaten!$D$39,IF(Q16=2,Grunddaten!$E$38-Grunddaten!$E$39,IF(Q16=1,Grunddaten!$F$38-Grunddaten!$F$39))))),\"\")","v":""}]
[10,null,{"$f":"DATE(YEAR(Juni!B$4),MONTH(Juni!B$4),DAY(1))","v":"2022-06-01"},{"$f":"Juni!B$6","v":"00:00:00"},{"$f":"IF(Juni!C$31=\"\",\"\",IF(COUNTIF(Juni!C$9:C$12,\"Ja\")=4,4,COUNTIF(Juni!C$9:C$12,\"Ja\")+1))","v":""},{"$f":"IF(Juni!C$31=\"\",\"\",IF(OR(Juni!C$31=\"VÖ\",Juni!C$31=\"NM\"),\"RG\",Juni!C$31))","v":""},1469,{"$f":"IF(E17=\"\",0,INDEX(Grunddaten!$B$9:$E$19,MATCH(F17,Grunddaten!$A$9:$A$19,0),MATCH(E17,Grunddaten!$B$8:$E$8,0)))","v":0},{"$f":"IF(Juni!C31=\"VÖ\",\"x\",\"\")","v":""},{"$f":"IF(Juni!B$7=\"JA\",\"x\",\"\")","v":""},{"$f":"IF(Juni!C$31=\"NM\",\"x\",\"\")","v":""},null,{"$f":"ROUND(IF(F17=\"SG\",H17*Grunddaten!$B$25,(IF(L17=\"X\",(IF(AND(J17=\"X\",K17=\"X\"),H17*Grunddaten!$B$32,IF(AND(I17=\"X\",J17=\"X\"),H17*Grunddaten!$B$31,IF(I17=\"X\",H17*Grunddaten!$B$28,IF(J17=\"X\",H17*Grunddaten!$B$29,IF(K17=\"X\",H17*Grunddaten!$B$30,H17)))))*Grunddaten!$B$33),IF(AND(J17=\"X\",K17=\"X\"),H17*Grunddaten!$B$32,IF(AND(I17=\"X\",J17=\"X\"),H17*Grunddaten!$B$31,IF(I17=\"X\",H17*Grunddaten!$B$28,IF(J17=\"X\",H17*Grunddaten!$B$29,IF(K17=\"X\",H17*Grunddaten!$B$30,H17)))))))),2)","v":0},null,{"$f":"M17+(N17*Grunddaten!B$35)","v":0},{"$f":"IF(Juni!B$40=\"\",\"\",Juni!B$40)","v":""},{"$f":"IF(Juni!B$37=\"\",\"\",Juni!B$37)","v":0},{"$f":"IF(Juni!B$38=\"\",\"\",Juni!B$38)","v":""},{"$f":"IF(P17=\"\",IF(Q17=5,Grunddaten!$B$38,IF(Q17=4,Grunddaten!$C$38,IF(Q17=3,Grunddaten!$D$38,IF(Q17=2,Grunddaten!$E$38,IF(Q17=1,Grunddaten!$F$38,IF(Q17=\"\",0)))))),(IF(Q17=5,Grunddaten!$B$39,IF(Q17=4,Grunddaten!$C$39,IF(Q17=3,Grunddaten!$D$39,IF(Q17=2,Grunddaten!$E$39,IF(Q17=1,Grunddaten!$F$39,IF(Q17=\"\",0))))))))+IF(R17=\"\",0,Grunddaten!$B$40)","v":0},0,{"$f":"IF(P17=\"x\",IF(Q17=5,Grunddaten!$B$38-Grunddaten!$B$39,IF(Q17=4,Grunddaten!$C$38-Grunddaten!$C$39,IF(Q17=3,Grunddaten!$D$38-Grunddaten!$D$39,IF(Q17=2,Grunddaten!$E$38-Grunddaten!$E$39,IF(Q17=1,Grunddaten!$F$38-Grunddaten!$F$39))))),\"\")","v":""}]
[11,null,{"$f":"DATE(YEAR(Juli!B$4),MONTH(Juli!B$4),DAY(1))","v":"2022-07-01"},{"$f":"Juli!B$6","v":"00:00:00"},{"$f":"IF(Juli!C$31=\"\",\"\",IF(COUNTIF(Juli!C$9:C$12,\"Ja\")=4,4,COUNTIF(Juli!C$9:C$12,\"Ja\")+1))","v":""},{"$f":"IF(Juli!C$31=\"\",\"\",IF(OR(Juli!C$31=\"VÖ\",Juli!C$31=\"NM\"),\"RG\",Juli!C$31))","v":""},1470,{"$f":"IF(E18=\"\",0,INDEX(Grunddaten!$B$9:$E$19,MATCH(F18,Grunddaten!$A$9:$A$19,0),MATCH(E18,Grunddaten!$B$8:$E$8,0)))","v":0},{"$f":"IF(Juli!C31=\"VÖ\",\"x\",\"\")","v":""},{"$f":"IF(Juli!B$7=\"JA\",\"x\",\"\")","v":""},{"$f":"IF(Juli!C$31=\"NM\",\"x\",\"\")","v":""},null,{"$f":"ROUND(IF(F18=\"SG\",H18*Grunddaten!$B$25,(IF(L18=\"X\",(IF(AND(J18=\"X\",K18=\"X\"),H18*Grunddaten!$B$32,IF(AND(I18=\"X\",J18=\"X\"),H18*Grunddaten!$B$31,IF(I18=\"X\",H18*Grunddaten!$B$28,IF(J18=\"X\",H18*Grunddaten!$B$29,IF(K18=\"X\",H18*Grunddaten!$B$30,H18)))))*Grunddaten!$B$33),IF(AND(J18=\"X\",K18=\"X\"),H18*Grunddaten!$B$32,IF(AND(I18=\"X\",J18=\"X\"),H18*Grunddaten!$B$31,IF(I18=\"X\",H18*Grunddaten!$B$28,IF(J18=\"X\",H18*Grunddaten!$B$29,IF(K18=\"X\",H18*Grunddaten!$B$30,H18)))))))),2)","v":0},null,{"$f":"M18+(N18*Grunddaten!B$35)","v":0},{"$f":"IF(Juli!B$40=\"\",\"\",Juli!B$40)","v":""},{"$f":"IF(Juli!B$37=\"\",\"\",Juli!B$37)","v":0},{"$f":"IF(Juli!B$38=\"\",\"\",Juli!B$38)","v":""},{"$f":"IF(P18=\"\",IF(Q18=5,Grunddaten!$B$38,IF(Q18=4,Grunddaten!$C$38,IF(Q18=3,Grunddaten!$D$38,IF(Q18=2,Grunddaten!$E$38,IF(Q18=1,Grunddaten!$F$38,IF(Q18=\"\",0)))))),(IF(Q18=5,Grunddaten!$B$39,IF(Q18=4,Grunddaten!$C$39,IF(Q18=3,Grunddaten!$D$39,IF(Q18=2,Grunddaten!$E$39,IF(Q18=1,Grunddaten!$F$39,IF(Q18=\"\",0))))))))+IF(R18=\"\",0,Grunddaten!$B$40)","v":0},0,{"$f":"IF(P18=\"x\",IF(Q18=5,Grunddaten!$B$38-Grunddaten!$B$39,IF(Q18=4,Grunddaten!$C$38-Grunddaten!$C$39,IF(Q18=3,Grunddaten!$D$38-Grunddaten!$D$39,IF(Q18=2,Grunddaten!$E$38-Grunddaten!$E$39,IF(Q18=1,Grunddaten!$F$38-Grunddaten!$F$39))))),\"\")","v":""}]
[12,null,{"$f":"DATE(YEAR(August!B$4),MONTH(August!B$4),DAY(1))","v":"2022-08-01"},{"$f":"August!B$6","v":"00:00:00"},{"$f":"IF(August!C$31=\"\",\"\",IF(COUNTIF(August!C$9:C$12,\"Ja\")=4,4,COUNTIF(August!C$9:C$12,\"Ja\")+1))","v":""},{"$f":"IF(August!C$31=\"\",\"\",IF(OR(August!C$31=\"VÖ\",August!C$31=\"NM\"),\"RG\",August!C$31))","v":""},{"$f":"DATEDIF(D19,C19,\"m\")","v":1471},{"$f":"IF(E19=\"\",0,INDEX(Grunddaten!$B$9:$E$19,MATCH(F19,Grunddaten!$A$9:$A$19,0),MATCH(E19,Grunddaten!$B$8:$E$8,0)))","v":0},{"$f":"IF(August!C31=\"VÖ\",\"x\",\"\")","v":""},{"$f":"IF(August!B$7=\"JA\",\"x\",\"\")","v":""},{"$f":"IF(August!C$31=\"NM\",\"x\",\"\")","v":""},null,{"$f":"ROUND(IF(F19=\"SG\",H19*Grunddaten!$B$25,(IF(L19=\"X\",(IF(AND(J19=\"X\",K19=\"X\"),H19*Grunddaten!$B$32,IF(AND(I19=\"X\",J19=\"X\"),H19*Grunddaten!$B$31,IF(I19=\"X\",H19*Grunddaten!$B$28,IF(J19=\"X\",H19*Grunddaten!$B$29,IF(K19=\"X\",H19*Grunddaten!$B$30,H19)))))*Grunddaten!$B$33),IF(AND(J19=\"X\",K19=\"X\"),H19*Grunddaten!$B$32,IF(AND(I19=\"X\",J19=\"X\"),H19*Grunddaten!$B$31,IF(I19=\"X\",H19*Grunddaten!$B$28,IF(J19=\"X\",H19*Grunddaten!$B$29,IF(K19=\"X\",H19*Grunddaten!$B$30,H19)))))))),2)","v":0},null,{"$f":"M19+(N19*Grunddaten!B$35)","v":0},{"$f":"IF(August!B$40=\"\",\"\",August!B$40)","v":""},{"$f":"IF(August!B$37=\"\",\"\",August!B$37)","v":0},{"$f":"IF(August!B$38=\"\",\"\",August!B$38)","v":""},{"$f":"IF(P19=\"\",IF(Q19=5,Grunddaten!$B$38,IF(Q19=4,Grunddaten!$C$38,IF(Q19=3,Grunddaten!$D$38,IF(Q19=2,Grunddaten!$E$38,IF(Q19=1,Grunddaten!$F$38,IF(Q19=\"\",0)))))),(IF(Q19=5,Grunddaten!$B$39,IF(Q19=4,Grunddaten!$C$39,IF(Q19=3,Grunddaten!$D$39,IF(Q19=2,Grunddaten!$E$39,IF(Q19=1,Grunddaten!$F$39,IF(Q19=\"\",0))))))))+IF(R19=\"\",0,Grunddaten!$B$40)","v":0},{"$f":"S19+O19","v":0},{"$f":"IF(P19=\"x\",IF(Q19=5,Grunddaten!$B$38-Grunddaten!$B$39,IF(Q19=4,Grunddaten!$C$38-Grunddaten!$C$39,IF(Q19=3,Grunddaten!$D$38-Grunddaten!$D$39,IF(Q19=2,Grunddaten!$E$38-Grunddaten!$E$39,IF(Q19=1,Grunddaten!$F$38-Grunddaten!$F$39))))),\"\")","v":""}]
[null,null,null,null,null,null,null,null,null,null,null,null,null,null,null,null,null,null,null,null,{"$f":"IF(P20=\"x\",IF(Q20=5,Grunddaten!$B$38-Grunddaten!$B$39,IF(Q20=4,Grunddaten!$C$38-Grunddaten!$C$39,IF(Q20=3,Grunddaten!$D$38-Grunddaten!$D$39,IF(Q20=2,Grunddaten!$E$38-Grunddaten!$E$39,IF(Q20=1,Grunddaten!$F$38-Grunddaten!$F$39))))),\"\")","v":""}]
[null,null,null,null,null,null,null,null,null,null,null,null,null,null,null,null,null,null,null,null,{"$f":"IF(P21=\"x\",IF(Q21=5,Grunddaten!$B$38-Grunddaten!$B$39,IF(Q21=4,Grunddaten!$C$38-Grunddaten!$C$39,IF(Q21=3,Grunddaten!$D$38-Grunddaten!$D$39,IF(Q21=2,Grunddaten!$E$38-Grunddaten!$E$39,IF(Q21=1,Grunddaten!$F$38-Grunddaten!$F$39))))),\"\")","v":""}]
[null,null,null,null,null,null,null,null,null,null,null,null,null,null,null,null,null,null,null,null,{"$f":"IF(P22=\"x\",IF(Q22=5,Grunddaten!$B$38-Grunddaten!$B$39,IF(Q22=4,Grunddaten!$C$38-Grunddaten!$C$39,IF(Q22=3,Grunddaten!$D$38-Grunddaten!$D$39,IF(Q22=2,Grunddaten!$E$38-Grunddaten!$E$39,IF(Q22=1,Grunddaten!$F$38-Grunddaten!$F$39))))),\"\")","v":""}]
[null,null,null,null,null,null,null,null,null,null,null,null,null,null,null,null,null,null,null,null,{"$f":"IF(P23=\"x\",IF(Q23=5,Grunddaten!$B$38-Grunddaten!$B$39,IF(Q23=4,Grunddaten!$C$38-Grunddaten!$C$39,IF(Q23=3,Grunddaten!$D$38-Grunddaten!$D$39,IF(Q23=2,Grunddaten!$E$38-Grunddaten!$E$39,IF(Q23=1,Grunddaten!$F$38-Grunddaten!$F$39))))),\"\")","v":""}]
[null,null,null,null,null,null,null,null,null,null,null,null,null,null,null,null,null,null,null,null,{"$f":"IF(P24=\"x\",IF(Q24=5,Grunddaten!$B$38-Grunddaten!$B$39,IF(Q24=4,Grunddaten!$C$38-Grunddaten!$C$39,IF(Q24=3,Grunddaten!$D$38-Grunddaten!$D$39,IF(Q24=2,Grunddaten!$E$38-Grunddaten!$E$39,IF(Q24=1,Grunddaten!$F$38-Grunddaten!$F$39))))),\"\")","v":""}]
[null,null,null,null,null,null,null,null,null,null,null,null,null,null,null,null,null,null,null,null,{"$f":"IF(P25=\"x\",IF(Q25=5,Grunddaten!$B$38-Grunddaten!$B$39,IF(Q25=4,Grunddaten!$C$38-Grunddaten!$C$39,IF(Q25=3,Grunddaten!$D$38-Grunddaten!$D$39,IF(Q25=2,Grunddaten!$E$38-Grunddaten!$E$39,IF(Q25=1,Grunddaten!$F$38-Grunddaten!$F$39))))),\"\")","v":""}]
[null,null,null,null,null,null,null,null,null,null,null,null,null,null,null,null,null,null,null,null,{"$f":"IF(P26=\"x\",IF(Q26=5,Grunddaten!$B$38-Grunddaten!$B$39,IF(Q26=4,Grunddaten!$C$38-Grunddaten!$C$39,IF(Q26=3,Grunddaten!$D$38-Grunddaten!$D$39,IF(Q26=2,Grunddaten!$E$38-Grunddaten!$E$39,IF(Q26=1,Grunddaten!$F$38-Grunddaten!$F$39))))),\"\")","v":""}]
[null,null,null,null,null,null,null,null,null,null,null,null,null,null,null,null,null,null,null,null,{"$f":"IF(P27=\"x\",IF(Q27=5,Grunddaten!$B$38-Grunddaten!$B$39,IF(Q27=4,Grunddaten!$C$38-Grunddaten!$C$39,IF(Q27=3,Grunddaten!$D$38-Grunddaten!$D$39,IF(Q27=2,Grunddaten!$E$38-Grunddaten!$E$39,IF(Q27=1,Grunddaten!$F$38-Grunddaten!$F$39))))),\"\")","v":""}]
[null,null,null,null,null,null,null,null,null,null,null,null,null,null,null,null,null,null,null,null,{"$f":"IF(P28=\"x\",IF(Q28=5,Grunddaten!$B$38-Grunddaten!$B$39,IF(Q28=4,Grunddaten!$C$38-Grunddaten!$C$39,IF(Q28=3,Grunddaten!$D$38-Grunddaten!$D$39,IF(Q28=2,Grunddaten!$E$38-Grunddaten!$E$39,IF(Q28=1,Grunddaten!$F$38-Grunddaten!$F$39))))),\"\")","v":""}]
[null,null,null,null,null,null,null,null,null,null,null,null,null,null,null,null,null,null,null,null,{"$f":"IF(P29=\"x\",IF(Q29=5,Grunddaten!$B$38-Grunddaten!$B$39,IF(Q29=4,Grunddaten!$C$38-Grunddaten!$C$39,IF(Q29=3,Grunddaten!$D$38-Grunddaten!$D$39,IF(Q29=2,Grunddaten!$E$38-Grunddaten!$E$39,IF(Q29=1,Grunddaten!$F$38-Grunddaten!$F$39))))),\"\")","v":""}]
[null,null,null,null,null,null,null,null,null,null,null,null,null,null,null,null,null,null,null,null,{"$f":"IF(P30=\"x\",IF(Q30=5,Grunddaten!$B$38-Grunddaten!$B$39,IF(Q30=4,Grunddaten!$C$38-Grunddaten!$C$39,IF(Q30=3,Grunddaten!$D$38-Grunddaten!$D$39,IF(Q30=2,Grunddaten!$E$38-Grunddaten!$E$39,IF(Q30=1,Grunddaten!$F$38-Grunddaten!$F$39))))),\"\")","v":""}]
[null,null,null,null,null,null,null,null,null,null,null,null,null,null,null,null,null,null,null,null,{"$f":"IF(P31=\"x\",IF(Q31=5,Grunddaten!$B$38-Grunddaten!$B$39,IF(Q31=4,Grunddaten!$C$38-Grunddaten!$C$39,IF(Q31=3,Grunddaten!$D$38-Grunddaten!$D$39,IF(Q31=2,Grunddaten!$E$38-Grunddaten!$E$39,IF(Q31=1,Grunddaten!$F$38-Grunddaten!$F$39))))),\"\")","v":""}]
[null,null,null,null,null,null,null,null,null,null,null,null,null,null,null,null,null,null,null,null,{"$f":"IF(P32=\"x\",IF(Q32=5,Grunddaten!$B$38-Grunddaten!$B$39,IF(Q32=4,Grunddaten!$C$38-Grunddaten!$C$39,IF(Q32=3,Grunddaten!$D$38-Grunddaten!$D$39,IF(Q32=2,Grunddaten!$E$38-Grunddaten!$E$39,IF(Q32=1,Grunddaten!$F$38-Grunddaten!$F$39))))),\"\")","v":""}]
[null,null,null,null,null,null,null,null,null,null,null,null,null,null,null,null,null,null,null,null,{"$f":"IF(P33=\"x\",IF(Q33=5,Grunddaten!$B$38-Grunddaten!$B$39,IF(Q33=4,Grunddaten!$C$38-Grunddaten!$C$39,IF(Q33=3,Grunddaten!$D$38-Grunddaten!$D$39,IF(Q33=2,Grunddaten!$E$38-Grunddaten!$E$39,IF(Q33=1,Grunddaten!$F$38-Grunddaten!$F$39))))),\"\")","v":""}]
[null,null,null,null,null,null,null,null,null,null,null,null,null,null,null,null,null,null,null,null,{"$f":"IF(P34=\"x\",IF(Q34=5,Grunddaten!$B$38-Grunddaten!$B$39,IF(Q34=4,Grunddaten!$C$38-Grunddaten!$C$39,IF(Q34=3,Grunddaten!$D$38-Grunddaten!$D$39,IF(Q34=2,Grunddaten!$E$38-Grunddaten!$E$39,IF(Q34=1,Grunddaten!$F$38-Grunddaten!$F$39))))),\"\")","v":""}]
[null,null,null,null,null,null,null,null,null,null,null,null,null,null,null,null,null,null,null,null,{"$f":"IF(P35=\"x\",IF(Q35=5,Grunddaten!$B$38-Grunddaten!$B$39,IF(Q35=4,Grunddaten!$C$38-Grunddaten!$C$39,IF(Q35=3,Grunddaten!$D$38-Grunddaten!$D$39,IF(Q35=2,Grunddaten!$E$38-Grunddaten!$E$39,IF(Q35=1,Grunddaten!$F$38-Grunddaten!$F$39))))),\"\")","v":""}]
[]
[null,null,"Namen löschen",null,null,"        alle Eingaben löschen"]
[]
[]
[]
[]
[null,null,"ABC"]

{"sheet":"September","index":3,"n_rows":45,"n_cols":3,"rows_kept":45,"cut":false,"hidden":false,"merged":[[23,0,27,0],[20,0,22,0],[0,0,0,2]]}
["Gebührenberechnung \nfür die Kindertagesstätten der Stadt Göppingen"]
[]
[]
["Betreuungsmonat:","2021-09-01"]
[]
["Geburtsdatum des zu betreuenden Kindes"]
["U3-Zuschlag",{"$f":"IF(B4=\"\",\"\",IF(Online_Gebührenberechnung!G8>35,\"\",\"JA\"))","v":""}]
[null,null,"auf Familienrabatt anrechenbar?"]
["Geburtsdatum Geschwisterkinder",null,{"$f":"IF(B9=\"\",\"\",IF(DATEDIF(B9,($B$4-DAY($B$4)+1),\"y\")>=18,\"Nein\",\"Ja\"))","v":""}]
["Geburtsdatum Geschwisterkinder",null,{"$f":"IF(B10=\"\",\"\",IF(DATEDIF(B10,($B$4-DAY($B$4)+1),\"y\")>=18,\"Nein\",\"Ja\"))","v":""}]
["Geburtsdatum Geschwisterkinder",null,{"$f":"IF(B11=\"\",\"\",IF(DATEDIF(B11,($B$4-DAY($B$4)+1),\"y\")>=18,\"Nein\",\"Ja\"))","v":""}]
["Geburtsdatum Geschwisterkinder",null,{"$f":"IF(B12=\"\",\"\",IF(DATEDIF(B12,($B$4-DAY($B$4)+1),\"y\")>=18,\"Nein\",\"Ja\"))","v":""}]
[]
[]
["Betreuungsform","Umfang","Kennzeichen"]
["betreute Spielgruppe für U3","bis 15 h / Woche","SG"]
["Halbtagsgruppe (ab 2 Jahre bis Schuleintritt)","bis 20 h / Woche","HG"]
["Regelkindergarten (vormittags + nachmittags)\nerweiterte Regelbetreuung (5 Std. vorm. + \n2 Nachmittage / Woche á 2,5 Std.)","bis 30 h / Woche","RG"]
["Regelkindergarten (nachmittags)","bis 10 h / Woche","NM"]
["Veränderte Öffnungszeiten \n(bis 7 Std. zusammenhängend)","bis 35 h / Woche","VÖ"]
["Ganztagesbetreuung (bis Schuleintritt)\n(über 35 h / Woche) \nzzgl. Verpflegung","bis 8 Std. Tag","GT8"]
[null,"bis 9 Std. / Tag","GT9"]
[null,"bis 10 Std. / Tag","GT10"]
["Schülerhort \n(Schuleintritt bis max. 14 Jahre)\n(im Zeitraum von 6:30 - 17:00 Uhr) \nzzgl. Verpflegung","bis 5 Std. Tag","SH5"]
[null,"bis 6 Std. / Tag","SH6"]
[null,"bis 8 Std. Tag","SH8"]
[null,"bis 9 Std. / Tag","SH9"]
[null,"bis 10 Std. / Tag","SH10"]
["Abendgruppe (17:00 - 20:00 Uhr)","bis 15 h / Woche","AG"]
[]
["gewünschte Betreuungsform",null,""]
["Zusatz Einzelstunden (5 € / Stunde)"]
["zusätzliche Abendbetreuung gewünscht",null,{"$f":"IF(B7=\"JA\",\"u3\",\"\")","v":""}]
[]
[]
["Verpflegung"]
["Anzahl Essen pro Woche"]
["Vesper"]
["Ablaufdatum Bildungs- und Teilhabepaket (BuT)"]
["BuT für den ganzen Monat",{"$f":"IF(B39=\"\",\"\",IF(B39>=B4,\"x\",\"\"))","v":""}]
[]
["Gebührenzusammenstellung"]
["Betreuung",{"$f":"5*C32+IF(DAY(B4)>14,0.5*(Online_Gebührenberechnung!O8+IF(C33=\"AG\",AG!G8,0)),Online_Gebührenberechnung!O8+IF(C33=\"AG\",AG!G8,0))","v":0}]
["Verpflegung",{"$f":"IF(DAY(B4)>14,IF(B38=\"x\",(0.5*Online_Gebührenberechnung!S8)+(0.5*Grunddaten!B40),0.5*Online_Gebührenberechnung!S8),Online_Gebührenberechnung!S8)","v":0}]
["Gesamtgebühren ",{"$f":"B43+B44","v":0}]

{"sheet":"Oktober","index":4,"n_rows":45,"n_cols":3,"rows_kept":45,"cut":false,"hidden":true,"merged":[[23,0,27,0],[20,0,22,0],[0,0,0,2]]}
["Gebührenberechnung \nfür die Kindertagesstätten der Stadt Göppingen"]
[]
[]
["Betreuungsmonat:",{"$f":"DATE(YEAR(September!B4),MONTH(September!B4)+1,DAY(1))","v":"2021-10-01"}]
[{"$f":"Bescheid!A18","v":"???"}]
["Geburtsdatum des zu betreuenden Kindes",{"$f":"September!B6","v":"00:00:00"}]
["U3-Zuschlag",{"$f":"IF(B4=\"\",\"\",IF(Online_Gebührenberechnung!G9>35,\"\",\"JA\"))","v":""}]
[null,null,"auf Familienrabatt anrechenbar?"]
["Geburtsdatum Geschwisterkinder",{"$f":"IF(September!B9=\"\",\"\",September!B9)","v":""},{"$f":"IF(B9=\"\",\"\",IF(DATEDIF(B9,($B$4-DAY($B$4)+1),\"y\")>=18,\"Nein\",\"Ja\"))","v":""}]
["Geburtsdatum Geschwisterkinder",{"$f":"IF(September!B10=\"\",\"\",September!B10)","v":""},{"$f":"IF(B10=\"\",\"\",IF(DATEDIF(B10,($B$4-DAY($B$4)+1),\"y\")>=18,\"Nein\",\"Ja\"))","v":""}]
["Geburtsdatum Geschwisterkinder",{"$f":"IF(September!B11=\"\",\"\",September!B11)","v":""},{"$f":"IF(B11=\"\",\"\",IF(DATEDIF(B11,($B$4-DAY($B$4)+1),\"y\")>=18,\"Nein\",\"Ja\"))","v":""}]
["Geburtsdatum Geschwisterkinder",{"$f":"IF(September!B12=\"\",\"\",September!B12)","v":""},{"$f":"IF(B12=\"\",\"\",IF(DATEDIF(B12,($B$4-DAY($B$4)+1),\"y\")>=18,\"Nein\",\"Ja\"))","v":""}]
[]
[]
["Betreuungsform","Umfang","Kennzeichen"]
["betreute Spielgruppe für U3","bis 15 h / Woche","SG"]
["Halbtagsgruppe (ab 2 Jahre bis Schuleintritt)","bis 20 h / Woche","HG"]
["Regelkindergarten (vormittags + nachmittags)\nerweiterte Regelbetreuung (5 Std. vorm. + \n2 Nachmittage / Woche á 2,5 Std.)","bis 30 h / Woche","RG"]
["Regelkindergarten (nachmittags)","bis 10 h / Woche","NM"]
["Veränderte Öffnungszeiten \n(bis 7 Std. zusammenhängend)","bis 35 h / Woche","VÖ"]
["Ganztagesbetreuung (bis Schuleintritt)\n(über 35 h / Woche) \nzzgl. Verpflegung","bis 8 Std. Tag","GT8"]
[null,"bis 9 Std. / Tag","GT9"]
[null,"bis 10 Std. / Tag","GT10"]
["Schülerhort \n(Schuleintritt bis max. 14 Jahre)\n(im Zeitraum von 6:30 - 17:00 Uhr) \nzzgl. Verpflegung","bis 5 Std. Tag","SH5"]
[null,"bis 6 Std. / Tag","SH6"]
[null,"bis 8 Std. Tag","SH8"]
[null,"bis 9 Std. / Tag","SH9"]
[null,"bis 10 Std. / Tag","SH10"]
["Abendgruppe (17:00 - 20:00 Uhr)","bis 15 h / Woche","AG"]
[]
["gewünschte Betreuungsform",null,{"$f":"IF(DAY(September!$B$4)=20,0,September!C31)","v":""}]
["Zusatz Einzelstunden (5 € / Stunde)",null,{"$f":"IF(DAY(September!$B$4)=20,0,September!C32)","v":0}]
["zusätzliche Abendbetreuung gewünscht",null,{"$f":"IF(B7=\"JA\",\"u3\",\"\")","v":""}]
[]
[]
["Verpflegung"]
["Anzahl Essen pro Woche",{"$f":"IF(DAY(September!$B$4)=20,0,September!B37)","v":0}]
["Vesper",{"$f":"IF(DAY(September!B4)=20,\"\",IF(September!B38=\"\",\"\",September!B38))","v":""}]
["Ablaufdatum Bildungs- und Teilhabepaket (BuT)",{"$f":"IF(September!B39=\"\",\"\",September!B39)","v":""}]
["BuT für den ganzen Monat",{"$f":"IF(B39=\"\",\"\",IF(B39>=B4,\"x\",\"\"))","v":""}]
[]
["Gebührenzusammenstellung"]
["Betreuung",{"$f":"IF(AND(C31=0,C33=0),0,5*C32+IF(DAY(B4)>14,0.5*(Online_Gebührenberechnung!O9+IF(C33=\"AG\",AG!G9,0)),Online_Gebührenberechnung!O9+IF(C33=\"AG\",AG!G9,0)))","v":0}]
["Verpflegung",{"$f":"IF(DAY(B4)>14,IF(B38=\"x\",(0.5*Online_Gebührenberechnung!S9)+(0.5*Grunddaten!B40),0.5*Online_Gebührenberechnung!S9),Online_Gebührenberechnung!S9)","v":0}]
["Gesamtgebühren ",{"$f":"B43+B44","v":0}]

{"sheet":"November","index":5,"n_rows":45,"n_cols":3,"rows_kept":45,"cut":false,"hidden":true,"merged":[[23,0,27,0],[20,0,22,0],[0,0,0,2]]}
["Gebührenberechnung\nfür die Kindertagesstätten der Stadt Göppingen"]
[]
[]
["Betreuungsmonat:",{"$f":"DATE(YEAR(Oktober!B4),MONTH(Oktober!B4)+1,DAY(1))","v":"2021-11-01"}]
[{"$f":"Bescheid!A18","v":"???"}]
["Geburtsdatum des zu betreuenden Kindes",{"$f":"Oktober!B6","v":"00:00:00"}]
["U3-Zuschlag",{"$f":"IF(B4=\"\",\"\",IF(Online_Gebührenberechnung!G10>35,\"\",\"JA\"))","v":""}]
[null,null,"auf Familienrabatt anrechenbar?"]
["Geburtsdatum Geschwisterkinder",{"$f":"IF(Oktober!B9=\"\",\"\",Oktober!B9)","v":""},{"$f":"IF(B9=\"\",\"\",IF(DATEDIF(B9,($B$4-DAY($B$4)+1),\"y\")>=18,\"Nein\",\"Ja\"))","v":""}]
["Geburtsdatum Geschwisterkinder",{"$f":"IF(Oktober!B10=\"\",\"\",Oktober!B10)","v":""},{"$f":"IF(B10=\"\",\"\",IF(DATEDIF(B10,($B$4-DAY($B$4)+1),\"y\")>=18,\"Nein\",\"Ja\"))","v":""}]
["Geburtsdatum Geschwisterkinder",{"$f":"IF(Oktober!B11=\"\",\"\",Oktober!B11)","v":""},{"$f":"IF(B11=\"\",\"\",IF(DATEDIF(B11,($B$4-DAY($B$4)+1),\"y\")>=18,\"Nein\",\"Ja\"))","v":""}]
["Geburtsdatum Geschwisterkinder",{"$f":"IF(Oktober!B12=\"\",\"\",Oktober!B12)","v":""},{"$f":"IF(B12=\"\",\"\",IF(DATEDIF(B12,($B$4-DAY($B$4)+1),\"y\")>=18,\"Nein\",\"Ja\"))","v":""}]
[]
[]
["Betreuungsform","Umfang","Kennzeichen"]
["betreute Spielgruppe für U3","bis 15 h / Woche","SG"]
["Halbtagsgruppe (ab 2 Jahre bis Schuleintritt)","bis 20 h / Woche","HG"]
["Regelkindergarten (vormittags + nachmittags)\nerweiterte Regelbetreuung (5 Std. vorm. + \n2 Nachmittage / Woche á 2,5 Std.)","bis 30 h / Woche","RG"]
["Regelkindergarten (nachmittags)","bis 10 h / Woche","NM"]
["Veränderte Öffnungszeiten \n(bis 7 Std. zusammenhängend)","bis 35 h / Woche","VÖ"]
["Ganztagesbetreuung (bis Schuleintritt)\n(über 35 h / Woche) \nzzgl. Verpflegung","bis 8 Std. Tag","GT8"]
[null,"bis 9 Std. / Tag","GT9"]
[null,"bis 10 Std. / Tag","GT10"]
["Schülerhort \n(Schuleintritt bis max. 14 Jahre)\n(im Zeitraum von 6:30 - 17:00 Uhr) \nzzgl. Verpflegung","bis 5 Std. Tag","SH5"]
[null,"bis 6 Std. / Tag","SH6"]
[null,"bis 8 Std. Tag","SH8"]
[null,"bis 9 Std. / Tag","SH9"]
[null,"bis 10 Std. / Tag","SH10"]
["Abendgruppe (17:00 - 20:00 Uhr)","bis 15 h / Woche","AG"]
[]
["gewünschte Betreuungsform",null,{"$f":"IF(DAY(Oktober!$B$4)=20,0,Oktober!C31)","v":""}]
["Zusatz Einzelstunden (5 € / Stunde)",null,{"$f":"IF(DAY(Oktober!$B$4)=20,0,Oktober!C32)","v":0}]
["zusätzliche Abendbetreuung gewünscht",null,{"$f":"IF(B7=\"JA\",\"u3\",\"\")","v":""}]
[]
[]
["Verpflegung"]
["Anzahl Essen pro Woche",{"$f":"IF(DAY(Oktober!$B$4)=20,0,Oktober!B37)","v":0}]
["Vesper",{"$f":"IF(DAY(Oktober!B4)=20,\"\",IF(Oktober!B38=\"\",\"\",Oktober!B38))","v":""}]
["Ablaufdatum Bildungs- und Teilhabepaket (BuT)",{"$f":"IF(Oktober!B39=\"\",\"\",Oktober!B39)","v":""}]
["BuT für den ganzen Monat",{"$f":"IF(B39=\"\",\"\",IF(B39>=B4,\"x\",\"\"))","v":""}]
[]
["Gebührenzusammenstellung"]
["Betreuung",{"$f":"IF(AND(C31=0,C33=0),0,5*C32+IF(DAY(B4)>14,0.5*(Online_Gebührenberechnung!O10+IF(C33=\"AG\",AG!G10,0)),Online_Gebührenberechnung!O10+IF(C33=\"AG\",AG!G10,0)))","v":0}]
["Verpflegung",{"$f":"IF(DAY(B4)>14,IF(B38=\"x\",(0.5*Online_Gebührenberechnung!S10)+(0.5*Grunddaten!B40),0.5*Online_Gebührenberechnung!S10),Online_Gebührenberechnung!S10)","v":0}]
["Gesamtgebühren ",{"$f":"B43+B44","v":0}]

{"sheet":"Dezember","index":6,"n_rows":45,"n_cols":3,"rows_kept":45,"cut":false,"hidden":true,"merged":[[23,0,27,0],[20,0,22,0],[0,0,0,2]]}
["Gebührenberechnung\nfür die Kindertagesstätten der Stadt Göppingen"]
[]
[]
["Betreuungsmonat:",{"$f":"DATE(YEAR(November!B4),MONTH(November!B4)+1,DAY(1))","v":"2021-12-01"}]
[{"$f":"Bescheid!A18","v":"???"}]
["Geburtsdatum des zu betreuenden Kindes",{"$f":"November!B6","v":"00:00:00"}]
["U3-Zuschlag",{"$f":"IF(B4=\"\",\"\",IF(Online_Gebührenberechnung!G11>35,\"\",\"JA\"))","v":""}]
[null,null,"auf Familienrabatt anrechenbar?"]
["Geburtsdatum Geschwisterkinder",{"$f":"IF(November!B9=\"\",\"\",November!B9)","v":""},{"$f":"IF(B9=\"\",\"\",IF(DATEDIF(B9,($B$4-DAY($B$4)+1),\"y\")>=18,\"Nein\",\"Ja\"))","v":""}]
["Geburtsdatum Geschwisterkinder",{"$f":"IF(November!B10=\"\",\"\",November!B10)","v":""},{"$f":"IF(B10=\"\",\"\",IF(DATEDIF(B10,($B$4-DAY($B$4)+1),\"y\")>=18,\"Nein\",\"Ja\"))","v":""}]
["Geburtsdatum Geschwisterkinder",{"$f":"IF(November!B11=\"\",\"\",November!B11)","v":""},{"$f":"IF(B11=\"\",\"\",IF(DATEDIF(B11,($B$4-DAY($B$4)+1),\"y\")>=18,\"Nein\",\"Ja\"))","v":""}]
["Geburtsdatum Geschwisterkinder",{"$f":"IF(November!B12=\"\",\"\",November!B12)","v":""},{"$f":"IF(B12=\"\",\"\",IF(DATEDIF(B12,($B$4-DAY($B$4)+1),\"y\")>=18,\"Nein\",\"Ja\"))","v":""}]
[]
[]
["Betreuungsform","Umfang","Kennzeichen"]
["betreute Spielgruppe für U3","bis 15 h / Woche","SG"]
["Halbtagsgruppe (ab 2 Jahre bis Schuleintritt)","bis 20 h / Woche","HG"]
["Regelkindergarten (vormittags + nachmittags)\nerweiterte Regelbetreuung (5 Std. vorm. + \n2 Nachmittage / Woche á 2,5 Std.)","bis 30 h / Woche","RG"]
["Regelkindergarten (nachmittags)","bis 10 h / Woche","NM"]
["Veränderte Öffnungszeiten \n(bis 7 Std. zusammenhängend)","bis 35 h / Woche","VÖ"]
["Ganztagesbetreuung (bis Schuleintritt)\n(über 35 h / Woche) \nzzgl. Verpflegung","bis 8 Std. Tag","GT8"]
[null,"bis 9 Std. / Tag","GT9"]
[null,"bis 10 Std. / Tag","GT10"]
["Schülerhort \n(Schuleintritt bis max. 14 Jahre)\n(im Zeitraum von 6:30 - 17:00 Uhr) \nzzgl. Verpflegung","bis 5 Std. Tag","SH5"]
[null,"bis 6 Std. / Tag","SH6"]
[null,"bis 8 Std. Tag","SH8"]
[null,"bis 9 Std. / Tag","SH9"]
[null,"bis 10 Std. / Tag","SH10"]
["Abendgruppe (17:00 - 20:00 Uhr)","bis 15 h / Woche","AG"]
[]
["gewünschte Betreuungsform",null,{"$f":"IF(DAY(November!$B$4)=20,0,November!C31)","v":""}]
["Zusatz Einzelstunden (5 € / Stunde)",null,{"$f":"IF(DAY(November!$B$4)=20,0,November!C32)","v":0}]
["zusätzliche Abendbetreuung gewünscht",null,{"$f":"IF(B7=\"JA\",\"u3\",\"\")","v":""}]
[]
[]
["Verpflegung"]
["Anzahl Essen pro Woche",{"$f":"IF(DAY(November!$B$4)=20,0,November!B37)","v":0}]
["Vesper",{"$f":"IF(DAY(November!B4)=20,\"\",IF(November!B38=\"\",\"\",November!B38))","v":""}]
["Ablaufdatum Bildungs- und Teilhabepaket (BuT)",{"$f":"IF(November!B39=\"\",\"\",November!B39)","v":""}]
["BuT für den ganzen Monat",{"$f":"IF(B39=\"\",\"\",IF(B39>=B4,\"x\",\"\"))","v":""}]
[]
["Gebührenzusammenstellung"]
["Betreuung",{"$f":"IF(AND(C31=0,C33=0),0,5*C32+IF(DAY(B4)>14,0.5*(Online_Gebührenberechnung!O11+IF(C33=\"AG\",AG!G11,0)),Online_Gebührenberechnung!O11+IF(C33=\"AG\",AG!G11,0)))","v":0}]
["Verpflegung",{"$f":"IF(DAY(B4)>14,IF(B38=\"x\",(0.5*Online_Gebührenberechnung!S11)+(0.5*Grunddaten!B40),0.5*Online_Gebührenberechnung!S11),Online_Gebührenberechnung!S11)","v":0}]
["Gesamtgebühren ",{"$f":"B43+B44","v":0}]

{"sheet":"Januar","index":7,"n_rows":45,"n_cols":3,"rows_kept":45,"cut":false,"hidden":true,"merged":[[23,0,27,0],[20,0,22,0],[0,0,0,2]]}
["Gebührenberechnung\nfür die Kindertagesstätten der Stadt Göppingen"]
[]
[]
["Betreuungsmonat:",{"$f":"DATE(YEAR(Dezember!B4),MONTH(Dezember!B4)+1,DAY(1))","v":"2022-01-01"}]
[{"$f":"Bescheid!A18","v":"???"}]
["Geburtsdatum des zu betreuenden Kindes",{"$f":"Dezember!B6","v":"00:00:00"}]
["U3-Zuschlag",{"$f":"IF(B4=\"\",\"\",IF(Online_Gebührenberechnung!G12>35,\"\",\"JA\"))","v":""}]
[null,null,"auf Familienrabatt anrechenbar?"]
["Geburtsdatum Geschwisterkinder",{"$f":"IF(Dezember!B9=\"\",\"\",Dezember!B9)","v":""},{"$f":"IF(B9=\"\",\"\",IF(DATEDIF(B9,($B$4-DAY($B$4)+1),\"y\")>=18,\"Nein\",\"Ja\"))","v":""}]
["Geburtsdatum Geschwisterkinder",{"$f":"IF(Dezember!B10=\"\",\"\",Dezember!B10)","v":""},{"$f":"IF(B10=\"\",\"\",IF(DATEDIF(B10,($B$4-DAY($B$4)+1),\"y\")>=18,\"Nein\",\"Ja\"))","v":""}]
["Geburtsdatum Geschwisterkinder",{"$f":"IF(Dezember!B11=\"\",\"\",Dezember!B11)","v":""},{"$f":"IF(B11=\"\",\"\",IF(DATEDIF(B11,($B$4-DAY($B$4)+1),\"y\")>=18,\"Nein\",\"Ja\"))","v":""}]
["Geburtsdatum Geschwisterkinder",{"$f":"IF(Dezember!B12=\"\",\"\",Dezember!B12)","v":""},{"$f":"IF(B12=\"\",\"\",IF(DATEDIF(B12,($B$4-DAY($B$4)+1),\"y\")>=18,\"Nein\",\"Ja\"))","v":""}]
[]
[]
["Betreuungsform","Umfang","Kennzeichen"]
["betreute Spielgruppe für U3","bis 15 h / Woche","SG"]
["Halbtagsgruppe (ab 2 Jahre bis Schuleintritt)","bis 20 h / Woche","HG"]
["Regelkindergarten (vormittags + nachmittags)\nerweiterte Regelbetreuung (5 Std. vorm. + \n2 Nachmittage / Woche á 2,5 Std.)","bis 30 h / Woche","RG"]
["Regelkindergarten (nachmittags)","bis 10 h / Woche","NM"]
["Veränderte Öffnungszeiten \n(bis 7 Std. zusammenhängend)","bis 35 h / Woche","VÖ"]
["Ganztagesbetreuung (bis Schuleintritt)\n(über 35 h / Woche) \nzzgl. Verpflegung","bis 8 Std. Tag","GT8"]
[null,"bis 9 Std. / Tag","GT9"]
[null,"bis 10 Std. / Tag","GT10"]
["Schülerhort \n(Schuleintritt bis max. 14 Jahre)\n(im Zeitraum von 6:30 - 17:00 Uhr) \nzzgl. Verpflegung","bis 5 Std. Tag","SH5"]
[null,"bis 6 Std. / Tag","SH6"]
[null,"bis 8 Std. Tag","SH8"]
[null,"bis 9 Std. / Tag","SH9"]
[null,"bis 10 Std. / Tag","SH10"]
["Abendgruppe (17:00 - 20:00 Uhr)","bis 15 h / Woche","AG"]
[]
["gewünschte Betreuungsform",null,{"$f":"IF(DAY(Dezember!$B$4)=20,0,Dezember!C31)","v":""}]
["Zusatz Einzelstunden (5 € / Stunde)",null,{"$f":"IF(DAY(Dezember!$B$4)=20,0,Dezember!C32)","v":0}]
["zusätzliche Abendbetreuung gewünscht",null,{"$f":"IF(B7=\"JA\",\"u3\",\"\")","v":""}]
[]
[]
["Verpflegung"]
["Anzahl Essen pro Woche",{"$f":"IF(DAY(Dezember!$B$4)=20,0,Dezember!B37)","v":0}]
["Vesper",{"$f":"IF(DAY(Dezember!B4)=20,\"\",IF(Dezember!B38=\"\",\"\",Dezember!B38))","v":""}]
["Ablaufdatum Bildungs- und Teilhabepaket (BuT)",{"$f":"IF(Dezember!B39=\"\",\"\",Dezember!B39)","v":""}]
["BuT für den ganzen Monat",{"$f":"IF(B39=\"\",\"\",IF(B39>=B4,\"x\",\"\"))","v":""}]
[]
["Gebührenzusammenstellung"]
["Betreuung",{"$f":"IF(AND(C31=0,C33=0),0,5*C32+IF(DAY(B4)>14,0.5*(Online_Gebührenberechnung!O12+IF(C33=\"AG\",AG!G12,0)),Online_Gebührenberechnung!O12+IF(C33=\"AG\",AG!G12,0)))","v":0}]
["Verpflegung",{"$f":"IF(DAY(B4)>14,IF(B38=\"x\",(0.5*Online_Gebührenberechnung!S12)+(0.5*Grunddaten!B40),0.5*Online_Gebührenberechnung!S12),Online_Gebührenberechnung!S12)","v":0}]
["Gesamtgebühren ",{"$f":"B43+B44","v":0}]

{"sheet":"Februar","index":8,"n_rows":45,"n_cols":3,"rows_kept":45,"cut":false,"hidden":true,"merged":[[23,0,27,0],[20,0,22,0],[0,0,0,2]]}
["Gebührenberechnung\nfür die Kindertagesstätten der Stadt Göppingen"]
[]
[]
["Betreuungsmonat:",{"$f":"DATE(YEAR(Januar!B4),MONTH(Januar!B4)+1,DAY(1))","v":"2022-02-01"}]
[{"$f":"Bescheid!A18","v":"???"}]
["Geburtsdatum des zu betreuenden Kindes",{"$f":"Januar!B6","v":"00:00:00"}]
["U3-Zuschlag",{"$f":"IF(B4=\"\",\"\",IF(Online_Gebührenberechnung!G13>35,\"\",\"JA\"))","v":""}]
[null,null,"auf Familienrabatt anrechenbar?"]
["Geburtsdatum Geschwisterkinder",{"$f":"IF(Januar!B9=\"\",\"\",Januar!B9)","v":""},{"$f":"IF(B9=\"\",\"\",IF(DATEDIF(B9,($B$4-DAY($B$4)+1),\"y\")>=18,\"Nein\",\"Ja\"))","v":""}]
["Geburtsdatum Geschwisterkinder",{"$f":"IF(Januar!B10=\"\",\"\",Januar!B10)","v":""},{"$f":"IF(B10=\"\",\"\",IF(DATEDIF(B10,($B$4-DAY($B$4)+1),\"y\")>=18,\"Nein\",\"Ja\"))","v":""}]
["Geburtsdatum Geschwisterkinder",{"$f":"IF(Januar!B11=\"\",\"\",Januar!B11)","v":""},{"$f":"IF(B11=\"\",\"\",IF(DATEDIF(B11,($B$4-DAY($B$4)+1),\"y\")>=18,\"Nein\",\"Ja\"))","v":""}]
["Geburtsdatum Geschwisterkinder",{"$f":"IF(Januar!B12=\"\",\"\",Januar!B12)","v":""},{"$f":"IF(B12=\"\",\"\",IF(DATEDIF(B12,($B$4-DAY($B$4)+1),\"y\")>=18,\"Nein\",\"Ja\"))","v":""}]
[]
[]
["Betreuungsform","Umfang","Kennzeichen"]
["betreute Spielgruppe für U3","bis 15 h / Woche","SG"]
["Halbtagsgruppe (ab 2 Jahre bis Schuleintritt)","bis 20 h / Woche","HG"]
["Regelkindergarten (vormittags + nachmittags)\nerweiterte Regelbetreuung (5 Std. vorm. + \n2 Nachmittage / Woche á 2,5 Std.)","bis 30 h / Woche","RG"]
["Regelkindergarten (nachmittags)","bis 10 h / Woche","NM"]
["Veränderte Öffnungszeiten \n(bis 7 Std. zusammenhängend)","bis 35 h / Woche","VÖ"]
["Ganztagesbetreuung (bis Schuleintritt)\n(über 35 h / Woche) \nzzgl. Verpflegung","bis 8 Std. Tag","GT8"]
[null,"bis 9 Std. / Tag","GT9"]
[null,"bis 10 Std. / Tag","GT10"]
["Schülerhort \n(Schuleintritt bis max. 14 Jahre)\n(im Zeitraum von 6:30 - 17:00 Uhr) \nzzgl. Verpflegung","bis 5 Std. Tag","SH5"]
[null,"bis 6 Std. / Tag","SH6"]
[null,"bis 8 Std. Tag","SH8"]
[null,"bis 9 Std. / Tag","SH9"]
[null,"bis 10 Std. / Tag","SH10"]
["Abendgruppe (17:00 - 20:00 Uhr)","bis 15 h / Woche","AG"]
[]
["gewünschte Betreuungsform",null,{"$f":"IF(DAY(Januar!$B$4)=20,0,Januar!C31)","v":""}]
["Zusatz Einzelstunden (5 € / Stunde)",null,{"$f":"IF(DAY(Januar!$B$4)=20,0,Januar!C32)","v":0}]
["zusätzliche Abendbetreuung gewünscht",null,{"$f":"IF(B7=\"JA\",\"u3\",\"\")","v":""}]
[]
[]
["Verpflegung"]
["Anzahl Essen pro Woche",{"$f":"IF(DAY(Januar!$B$4)=20,0,Januar!B37)","v":0}]
["Vesper",{"$f":"IF(DAY(Januar!B4)=20,\"\",IF(Januar!B38=\"\",\"\",Januar!B38))","v":""}]
["Ablaufdatum Bildungs- und Teilhabepaket (BuT)",{"$f":"IF(Januar!B39=\"\",\"\",Januar!B39)","v":""}]
["BuT für den ganzen Monat",{"$f":"IF(B39=\"\",\"\",IF(B39>=B4,\"x\",\"\"))","v":""}]
[]
["Gebührenzusammenstellung"]
["Betreuung",{"$f":"IF(AND(C31=0,C33=0),0,5*C32+IF(DAY(B4)>14,0.5*(Online_Gebührenberechnung!O13+IF(C33=\"AG\",AG!G13,0)),Online_Gebührenberechnung!O13+IF(C33=\"AG\",AG!G13,0)))","v":0}]
["Verpflegung",{"$f":"IF(DAY(B4)>14,IF(B38=\"x\",(0.5*Online_Gebührenberechnung!S13)+(0.5*Grunddaten!B40),0.5*Online_Gebührenberechnung!S13),Online_Gebührenberechnung!S13)","v":0}]
["Gesamtgebühren ",{"$f":"B43+B44","v":0}]

{"sheet":"März","index":9,"n_rows":45,"n_cols":3,"rows_kept":45,"cut":false,"hidden":true,"merged":[[23,0,27,0],[20,0,22,0],[0,0,0,2]]}
["Gebührenberechnung\nfür die Kindertagesstätten der Stadt Göppingen"]
[]
[]
["Betreuungsmonat:",{"$f":"DATE(YEAR(Februar!B4),MONTH(Februar!B4)+1,DAY(1))","v":"2022-03-01"}]
[{"$f":"Bescheid!A18","v":"???"}]
["Geburtsdatum des zu betreuenden Kindes",{"$f":"Februar!B6","v":"00:00:00"}]
["U3-Zuschlag",{"$f":"IF(B4=\"\",\"\",IF(Online_Gebührenberechnung!G14>35,\"\",\"JA\"))","v":""}]
[null,null,"auf Familienrabatt anrechenbar?"]
["Geburtsdatum Geschwisterkinder",{"$f":"IF(Februar!B9=\"\",\"\",Februar!B9)","v":""},{"$f":"IF(B9=\"\",\"\",IF(DATEDIF(B9,($B$4-DAY($B$4)+1),\"y\")>=18,\"Nein\",\"Ja\"))","v":""}]
["Geburtsdatum Geschwisterkinder",{"$f":"IF(Februar!B10=\"\",\"\",Februar!B10)","v":""},{"$f":"IF(B10=\"\",\"\",IF(DATEDIF(B10,($B$4-DAY($B$4)+1),\"y\")>=18,\"Nein\",\"Ja\"))","v":""}]
["Geburtsdatum Geschwisterkinder",{"$f":"IF(Februar!B11=\"\",\"\",Februar!B11)","v":""},{"$f":"IF(B11=\"\",\"\",IF(DATEDIF(B11,($B$4-DAY($B$4)+1),\"y\")>=18,\"Nein\",\"Ja\"))","v":""}]
["Geburtsdatum Geschwisterkinder",{"$f":"IF(Februar!B12=\"\",\"\",Februar!B12)","v":""},{"$f":"IF(B12=\"\",\"\",IF(DATEDIF(B12,($B$4-DAY($B$4)+1),\"y\")>=18,\"Nein\",\"Ja\"))","v":""}]
[]
[]
["Betreuungsform","Umfang","Kennzeichen"]
["betreute Spielgruppe für U3","bis 15 h / Woche","SG"]
["Halbtagsgruppe (ab 2 Jahre bis Schuleintritt)","bis 20 h / Woche","HG"]
["Regelkindergarten (vormittags + nachmittags)\nerweiterte Regelbetreuung (5 Std. vorm. + \n2 Nachmittage / Woche á 2,5 Std.)","bis 30 h / Woche","RG"]
["Regelkindergarten (nachmittags)","bis 10 h / Woche","NM"]
["Veränderte Öffnungszeiten \n(bis 7 Std. zusammenhängend)","bis 35 h / Woche","VÖ"]
["Ganztagesbetreuung (bis Schuleintritt)\n(über 35 h / Woche) \nzzgl. Verpflegung","bis 8 Std. Tag","GT8"]
[null,"bis 9 Std. / Tag","GT9"]
[null,"bis 10 Std. / Tag","GT10"]
["Schülerhort \n(Schuleintritt bis max. 14 Jahre)\n(im Zeitraum von 6:30 - 17:00 Uhr) \nzzgl. Verpflegung","bis 5 Std. Tag","SH5"]
[null,"bis 6 Std. / Tag","SH6"]
[null,"bis 8 Std. Tag","SH8"]
[null,"bis 9 Std. / Tag","SH9"]
[null,"bis 10 Std. / Tag","SH10"]
["Abendgruppe (17:00 - 20:00 Uhr)","bis 15 h / Woche","AG"]
[]
["gewünschte Betreuungsform",null,{"$f":"IF(DAY(Februar!$B$4)=20,0,Februar!C31)","v":""}]
["Zusatz Einzelstunden (5 € / Stunde)",null,{"$f":"IF(DAY(Februar!$B$4)=20,0,Februar!C32)","v":0}]
["zusätzliche Abendbetreuung gewünscht",null,{"$f":"IF(B7=\"JA\",\"u3\",\"\")","v":""}]
[]
[]
["Verpflegung"]
["Anzahl Essen pro Woche",{"$f":"IF(DAY(Februar!$B$4)=20,0,Februar!B37)","v":0}]
["Vesper",{"$f":"IF(DAY(Februar!B4)=20,\"\",IF(Februar!B38=\"\",\"\",Februar!B38))","v":""}]
["Ablaufdatum Bildungs- und Teilhabepaket (BuT)",{"$f":"IF(Februar!B39=\"\",\"\",Februar!B39)","v":""}]
["BuT für den ganzen Monat",{"$f":"IF(B39=\"\",\"\",IF(B39>=B4,\"x\",\"\"))","v":""}]
[]
["Gebührenzusammenstellung"]
["Betreuung",{"$f":"IF(AND(C31=0,C33=0),0,5*C32+IF(DAY(B4)>14,0.5*(Online_Gebührenberechnung!O14+IF(C33=\"AG\",AG!G14,0)),Online_Gebührenberechnung!O14+IF(C33=\"AG\",AG!G14,0)))","v":0}]
["Verpflegung",{"$f":"IF(DAY(B4)>14,IF(B38=\"x\",(0.5*Online_Gebührenberechnung!S14)+(0.5*Grunddaten!B40),0.5*Online_Gebührenberechnung!S14),Online_Gebührenberechnung!S14)","v":0}]
["Gesamtgebühren ",{"$f":"B43+B44","v":0}]

{"sheet":"April","index":10,"n_rows":45,"n_cols":3,"rows_kept":45,"cut":false,"hidden":true,"merged":[[23,0,27,0],[20,0,22,0],[0,0,0,2]]}
["Gebührenberechnung\nfür die Kindertagesstätten der Stadt Göppingen"]
[]
[]
["Betreuungsmonat:",{"$f":"DATE(YEAR(März!B4),MONTH(März!B4)+1,DAY(1))","v":"2022-04-01"}]
[{"$f":"Bescheid!A18","v":"???"}]
["Geburtsdatum des zu betreuenden Kindes",{"$f":"März!B6","v":"00:00:00"}]
["U3-Zuschlag",{"$f":"IF(B4=\"\",\"\",IF(Online_Gebührenberechnung!G15>35,\"\",\"JA\"))","v":""}]
[null,null,"auf Familienrabatt anrechenbar?"]
["Geburtsdatum Geschwisterkinder",{"$f":"IF(März!B9=\"\",\"\",März!B9)","v":""},{"$f":"IF(B9=\"\",\"\",IF(DATEDIF(B9,($B$4-DAY($B$4)+1),\"y\")>=18,\"Nein\",\"Ja\"))","v":""}]
["Geburtsdatum Geschwisterkinder",{"$f":"IF(März!B10=\"\",\"\",März!B10)","v":""},{"$f":"IF(B10=\"\",\"\",IF(DATEDIF(B10,($B$4-DAY($B$4)+1),\"y\")>=18,\"Nein\",\"Ja\"))","v":""}]
["Geburtsdatum Geschwisterkinder",{"$f":"IF(März!B11=\"\",\"\",März!B11)","v":""},{"$f":"IF(B11=\"\",\"\",IF(DATEDIF(B11,($B$4-DAY($B$4)+1),\"y\")>=18,\"Nein\",\"Ja\"))","v":""}]
["Geburtsdatum Geschwisterkinder",{"$f":"IF(März!B12=\"\",\"\",März!B12)","v":""},{"$f":"IF(B12=\"\",\"\",IF(DATEDIF(B12,($B$4-DAY($B$4)+1),\"y\")>=18,\"Nein\",\"Ja\"))","v":""}]
[]
[]
["Betreuungsform","Umfang","Kennzeichen"]
["betreute Spielgruppe für U3","bis 15 h / Woche","SG"]
["Halbtagsgruppe (ab 2 Jahre bis Schuleintritt)","bis 20 h / Woche","HG"]
["Regelkindergarten (vormittags + nachmittags)\nerweiterte Regelbetreuung (5 Std. vorm. + \n2 Nachmittage / Woche á 2,5 Std.)","bis 30 h / Woche","RG"]
["Regelkindergarten (nachmittags)","bis 10 h / Woche","NM"]
["Veränderte Öffnungszeiten \n(bis 7 Std. zusammenhängend)","bis 35 h / Woche","VÖ"]
["Ganztagesbetreuung (bis Schuleintritt)\n(über 35 h / Woche) \nzzgl. Verpflegung","bis 8 Std. Tag","GT8"]
[null,"bis 9 Std. / Tag","GT9"]
[null,"bis 10 Std. / Tag","GT10"]
["Schülerhort \n(Schuleintritt bis max. 14 Jahre)\n(im Zeitraum von 6:30 - 17:00 Uhr) \nzzgl. Verpflegung","bis 5 Std. Tag","SH5"]
[null,"bis 6 Std. / Tag","SH6"]
[null,"bis 8 Std. Tag","SH8"]
[null,"bis 9 Std. / Tag","SH9"]
[null,"bis 10 Std. / Tag","SH10"]
["Abendgruppe (17:00 - 20:00 Uhr)","bis 15 h / Woche","AG"]
[]
["gewünschte Betreuungsform",null,{"$f":"IF(DAY(März!$B$4)=20,0,März!C31)","v":""}]
["Zusatz Einzelstunden (5 € / Stunde)",null,{"$f":"IF(DAY(März!$B$4)=20,0,März!C32)","v":0}]
["zusätzliche Abendbetreuung gewünscht",null,{"$f":"IF(B7=\"JA\",\"u3\",\"\")","v":""}]
[]
[]
["Verpflegung"]
["Anzahl Essen pro Woche",{"$f":"IF(DAY(März!$B$4)=20,0,März!B37)","v":0}]
["Vesper",{"$f":"IF(DAY(März!B4)=20,\"\",IF(März!B38=\"\",\"\",März!B38))","v":""}]
["Ablaufdatum Bildungs- und Teilhabepaket (BuT)",{"$f":"IF(März!B39=\"\",\"\",März!B39)","v":""}]
["BuT für den ganzen Monat",{"$f":"IF(B39=\"\",\"\",IF(B39>=B4,\"x\",\"\"))","v":""}]
[]
["Gebührenzusammenstellung"]
["Betreuung",{"$f":"IF(AND(C31=0,C33=0),0,5*C32+IF(DAY(B4)>14,0.5*(Online_Gebührenberechnung!O15+IF(C33=\"AG\",AG!G15,0)),Online_Gebührenberechnung!O15+IF(C33=\"AG\",AG!G15,0)))","v":0}]
["Verpflegung",{"$f":"IF(DAY(B4)>14,IF(B38=\"x\",(0.5*Online_Gebührenberechnung!S15)+(0.5*Grunddaten!B40),0.5*Online_Gebührenberechnung!S15),Online_Gebührenberechnung!S15)","v":0}]
["Gesamtgebühren ",{"$f":"B43+B44","v":0}]

{"sheet":"Mai","index":11,"n_rows":45,"n_cols":3,"rows_kept":45,"cut":false,"hidden":true,"merged":[[23,0,27,0],[20,0,22,0],[0,0,0,2]]}
["Gebührenberechnung\nfür die Kindertagesstätten der Stadt Göppingen"]
[]
[]
["Betreuungsmonat:",{"$f":"DATE(YEAR(April!B4),MONTH(April!B4)+1,DAY(1))","v":"2022-05-01"}]
[{"$f":"Bescheid!A18","v":"???"}]
["Geburtsdatum des zu betreuenden Kindes",{"$f":"April!B6","v":"00:00:00"}]
["U3-Zuschlag",{"$f":"IF(B4=\"\",\"\",IF(Online_Gebührenberechnung!G16>35,\"\",\"JA\"))","v":""}]
[null,null,"auf Familienrabatt anrechenbar?"]
["Geburtsdatum Geschwisterkinder",{"$f":"IF(April!B9=\"\",\"\",April!B9)","v":""},{"$f":"IF(B9=\"\",\"\",IF(DATEDIF(B9,($B$4-DAY($B$4)+1),\"y\")>=18,\"Nein\",\"Ja\"))","v":""}]
["Geburtsdatum Geschwisterkinder",{"$f":"IF(April!B10=\"\",\"\",April!B10)","v":""},{"$f":"IF(B10=\"\",\"\",IF(DATEDIF(B10,($B$4-DAY($B$4)+1),\"y\")>=18,\"Nein\",\"Ja\"))","v":""}]
["Geburtsdatum Geschwisterkinder",{"$f":"IF(April!B11=\"\",\"\",April!B11)","v":""},{"$f":"IF(B11=\"\",\"\",IF(DATEDIF(B11,($B$4-DAY($B$4)+1),\"y\")>=18,\"Nein\",\"Ja\"))","v":""}]
["Geburtsdatum Geschwisterkinder",{"$f":"IF(April!B12=\"\",\"\",April!B12)","v":""},{"$f":"IF(B12=\"\",\"\",IF(DATEDIF(B12,($B$4-DAY($B$4)+1),\"y\")>=18,\"Nein\",\"Ja\"))","v":""}]
[]
[]
["Betreuungsform","Umfang","Kennzeichen"]
["betreute Spielgruppe für U3","bis 15 h / Woche","SG"]
["Halbtagsgruppe (ab 2 Jahre bis Schuleintritt)","bis 20 h / Woche","HG"]
["Regelkindergarten (vormittags + nachmittags)\nerweiterte Regelbetreuung (5 Std. vorm. + \n2 Nachmittage / Woche á 2,5 Std.)","bis 30 h / Woche","RG"]
["Regelkindergarten (nachmittags)","bis 10 h / Woche","NM"]
["Veränderte Öffnungszeiten \n(bis 7 Std. zusammenhängend)","bis 35 h / Woche","VÖ"]
["Ganztagesbetreuung (bis Schuleintritt)\n(über 35 h / Woche) \nzzgl. Verpflegung","bis 8 Std. Tag","GT8"]
[null,"bis 9 Std. / Tag","GT9"]
[null,"bis 10 Std. / Tag","GT10"]
["Schülerhort \n(Schuleintritt bis max. 14 Jahre)\n(im Zeitraum von 6:30 - 17:00 Uhr) \nzzgl. Verpflegung","bis 5 Std. Tag","SH5"]
[null,"bis 6 Std. / Tag","SH6"]
[null,"bis 8 Std. Tag","SH8"]
[null,"bis 9 Std. / Tag","SH9"]
[null,"bis 10 Std. / Tag","SH10"]
["Abendgruppe (17:00 - 20:00 Uhr)","bis 15 h / Woche","AG"]
[]
["gewünschte Betreuungsform",null,{"$f":"IF(DAY(April!$B$4)=20,0,April!C31)","v":""}]
["Zusatz Einzelstunden (5 € / Stunde)",null,{"$f":"IF(DAY(April!$B$4)=20,0,April!C32)","v":0}]
["zusätzliche Abendbetreuung gewünscht",null,{"$f":"IF(B7=\"JA\",\"u3\",\"\")","v":""}]
[]
[]
["Verpflegung"]
["Anzahl Essen pro Woche",{"$f":"IF(DAY(April!$B$4)=20,0,April!B37)","v":0}]
["Vesper",{"$f":"IF(DAY(April!B4)=20,\"\",IF(April!B38=\"\",\"\",April!B38))","v":""}]
["Ablaufdatum Bildungs- und Teilhabepaket (BuT)",{"$f":"IF(April!B39=\"\",\"\",April!B39)","v":""}]
["BuT für den ganzen Monat",{"$f":"IF(B39=\"\",\"\",IF(B39>=B4,\"x\",\"\"))","v":""}]
[]
["Gebührenzusammenstellung"]
["Betreuung",{"$f":"IF(AND(C31=0,C33=0),0,5*C32+IF(DAY(B4)>14,0.5*(Online_Gebührenberechnung!O16+IF(C33=\"AG\",AG!G16,0)),Online_Gebührenberechnung!O16+IF(C33=\"AG\",AG!G16,0)))","v":0}]
["Verpflegung",{"$f":"IF(DAY(B4)>14,IF(B38=\"x\",(0.5*Online_Gebührenberechnung!S16)+(0.5*Grunddaten!B40),0.5*Online_Gebührenberechnung!S16),Online_Gebührenberechnung!S16)","v":0}]
["Gesamtgebühren ",{"$f":"B43+B44","v":0}]

{"sheet":"Juni","index":12,"n_rows":45,"n_cols":3,"rows_kept":45,"cut":false,"hidden":true,"merged":[[23,0,27,0],[20,0,22,0],[0,0,0,2]]}
["Gebührenberechnung\nfür die Kindertagesstätten der Stadt Göppingen"]
[]
[]
["Betreuungsmonat:",{"$f":"DATE(YEAR(Mai!B4),MONTH(Mai!B4)+1,DAY(1))","v":"2022-06-01"}]
[{"$f":"Bescheid!A18","v":"???"}]
["Geburtsdatum des zu betreuenden Kindes",{"$f":"Mai!B6","v":"00:00:00"}]
["U3-Zuschlag",{"$f":"IF(B4=\"\",\"\",IF(Online_Gebührenberechnung!G17>35,\"\",\"JA\"))","v":""}]
[null,null,"auf Familienrabatt anrechenbar?"]
["Geburtsdatum Geschwisterkinder",{"$f":"IF(Mai!B9=\"\",\"\",Mai!B9)","v":""},{"$f":"IF(B9=\"\",\"\",IF(DATEDIF(B9,($B$4-DAY($B$4)+1),\"y\")>=18,\"Nein\",\"Ja\"))","v":""}]
["Geburtsdatum Geschwisterkinder",{"$f":"IF(Mai!B10=\"\",\"\",Mai!B10)","v":""},{"$f":"IF(B10=\"\",\"\",IF(DATEDIF(B10,($B$4-DAY($B$4)+1),\"y\")>=18,\"Nein\",\"Ja\"))","v":""}]
["Geburtsdatum Geschwisterkinder",{"$f":"IF(Mai!B11=\"\",\"\",Mai!B11)","v":""},{"$f":"IF(B11=\"\",\"\",IF(DATEDIF(B11,($B$4-DAY($B$4)+1),\"y\")>=18,\"Nein\",\"Ja\"))","v":""}]
["Geburtsdatum Geschwisterkinder",{"$f":"IF(Mai!B12=\"\",\"\",Mai!B12)","v":""},{"$f":"IF(B12=\"\",\"\",IF(DATEDIF(B12,($B$4-DAY($B$4)+1),\"y\")>=18,\"Nein\",\"Ja\"))","v":""}]
[]
[]
["Betreuungsform","Umfang","Kennzeichen"]
["betreute Spielgruppe für U3","bis 15 h / Woche","SG"]
["Halbtagsgruppe (ab 2 Jahre bis Schuleintritt)","bis 20 h / Woche","HG"]
["Regelkindergarten (vormittags + nachmittags)\nerweiterte Regelbetreuung (5 Std. vorm. + \n2 Nachmittage / Woche á 2,5 Std.)","bis 30 h / Woche","RG"]
["Regelkindergarten (nachmittags)","bis 10 h / Woche","NM"]
["Veränderte Öffnungszeiten \n(bis 7 Std. zusammenhängend)","bis 35 h / Woche","VÖ"]
["Ganztagesbetreuung (bis Schuleintritt)\n(über 35 h / Woche) \nzzgl. Verpflegung","bis 8 Std. Tag","GT8"]
[null,"bis 9 Std. / Tag","GT9"]
[null,"bis 10 Std. / Tag","GT10"]
["Schülerhort \n(Schuleintritt bis max. 14 Jahre)\n(im Zeitraum von 6:30 - 17:00 Uhr) \nzzgl. Verpflegung","bis 5 Std. Tag","SH5"]
[null,"bis 6 Std. / Tag","SH6"]
[null,"bis 8 Std. Tag","SH8"]
[null,"bis 9 Std. / Tag","SH9"]
[null,"bis 10 Std. / Tag","SH10"]
["Abendgruppe (17:00 - 20:00 Uhr)","bis 15 h / Woche","AG"]
[]
["gewünschte Betreuungsform",null,{"$f":"IF(DAY(Mai!$B$4)=20,0,Mai!C31)","v":""}]
["Zusatz Einzelstunden (5 € / Stunde)",null,{"$f":"IF(DAY(Mai!$B$4)=20,0,Mai!C32)","v":0}]
["zusätzliche Abendbetreuung gewünscht",null,{"$f":"IF(B7=\"JA\",\"u3\",\"\")","v":""}]
[]
[]
["Verpflegung"]
["Anzahl Essen pro Woche",{"$f":"IF(DAY(Mai!B4)=20,\"\",IF(DAY(Mai!$B$4)=20,0,Mai!B37))","v":0}]
["Vesper",{"$f":"IF(Mai!B38=\"\",\"\",Mai!B38)","v":""}]
["Ablaufdatum Bildungs- und Teilhabepaket (BuT)",{"$f":"IF(Mai!B39=\"\",\"\",Mai!B39)","v":""}]
["BuT für den ganzen Monat",{"$f":"IF(B39=\"\",\"\",IF(B39>=B4,\"x\",\"\"))","v":""}]
[]
["Gebührenzusammenstellung"]
["Betreuung",{"$f":"IF(AND(C31=0,C33=0),0,5*C32+IF(DAY(B4)>14,0.5*(Online_Gebührenberechnung!O17+IF(C33=\"AG\",AG!G17,0)),Online_Gebührenberechnung!O17+IF(C33=\"AG\",AG!G17,0)))","v":0}]
["Verpflegung",{"$f":"IF(DAY(B4)>14,IF(B38=\"x\",(0.5*Online_Gebührenberechnung!S17)+(0.5*Grunddaten!B40),0.5*Online_Gebührenberechnung!S17),Online_Gebührenberechnung!S17)","v":0}]
["Gesamtgebühren ",{"$f":"B43+B44","v":0}]

{"sheet":"Juli","index":13,"n_rows":45,"n_cols":3,"rows_kept":45,"cut":false,"hidden":true,"merged":[[23,0,27,0],[20,0,22,0],[0,0,0,2]]}
["Gebührenberechnung\nfür die Kindertagesstätten der Stadt Göppingen"]
[]
[]
["Betreuungsmonat:",{"$f":"DATE(YEAR(Juni!B4),MONTH(Juni!B4)+1,DAY(1))","v":"2022-07-01"}]
[{"$f":"Bescheid!A18","v":"???"}]
["Geburtsdatum des zu betreuenden Kindes",{"$f":"Juni!B6","v":"00:00:00"}]
["U3-Zuschlag",{"$f":"IF(B4=\"\",\"\",IF(Online_Gebührenberechnung!G18>35,\"\",\"JA\"))","v":""}]
[null,null,"auf Familienrabatt anrechenbar?"]
["Geburtsdatum Geschwisterkinder",{"$f":"IF(Juni!B9=\"\",\"\",Juni!B9)","v":""},{"$f":"IF(B9=\"\",\"\",IF(DATEDIF(B9,($B$4-DAY($B$4)+1),\"y\")>=18,\"Nein\",\"Ja\"))","v":""}]
["Geburtsdatum Geschwisterkinder",{"$f":"IF(Juni!B10=\"\",\"\",Juni!B10)","v":""},{"$f":"IF(B10=\"\",\"\",IF(DATEDIF(B10,($B$4-DAY($B$4)+1),\"y\")>=18,\"Nein\",\"Ja\"))","v":""}]
["Geburtsdatum Geschwisterkinder",{"$f":"IF(Juni!B11=\"\",\"\",Juni!B11)","v":""},{"$f":"IF(B11=\"\",\"\",IF(DATEDIF(B11,($B$4-DAY($B$4)+1),\"y\")>=18,\"Nein\",\"Ja\"))","v":""}]
["Geburtsdatum Geschwisterkinder",{"$f":"IF(Juni!B12=\"\",\"\",Juni!B12)","v":""},{"$f":"IF(B12=\"\",\"\",IF(DATEDIF(B12,($B$4-DAY($B$4)+1),\"y\")>=18,\"Nein\",\"Ja\"))","v":""}]
[]
[]
["Betreuungsform","Umfang","Kennzeichen"]
["betreute Spielgruppe für U3","bis 15 h / Woche","SG"]
["Halbtagsgruppe (ab 2 Jahre bis Schuleintritt)","bis 20 h / Woche","HG"]
["Regelkindergarten (vormittags + nachmittags)\nerweiterte Regelbetreuung (5 Std. vorm. + \n2 Nachmittage / Woche á 2,5 Std.)","bis 30 h / Woche","RG"]
["Regelkindergarten (nachmittags)","bis 10 h / Woche","NM"]
["Veränderte Öffnungszeiten \n(bis 7 Std. zusammenhängend)","bis 35 h / Woche","VÖ"]
["Ganztagesbetreuung (bis Schuleintritt)\n(über 35 h / Woche) \nzzgl. Verpflegung","bis 8 Std. Tag","GT8"]
[null,"bis 9 Std. / Tag","GT9"]
[null,"bis 10 Std. / Tag","GT10"]
["Schülerhort \n(Schuleintritt bis max. 14 Jahre)\n(im Zeitraum von 6:30 - 17:00 Uhr) \nzzgl. Verpflegung","bis 5 Std. Tag","SH5"]
[null,"bis 6 Std. / Tag","SH6"]
[null,"bis 8 Std. Tag","SH8"]
[null,"bis 9 Std. / Tag","SH9"]
[null,"bis 10 Std. / Tag","SH10"]
["Abendgruppe (17:00 - 20:00 Uhr)","bis 15 h / Woche","AG"]
[]
["gewünschte Betreuungsform",null,{"$f":"IF(DAY(Juni!$B$4)=20,0,Juni!C31)","v":""}]
["Zusatz Einzelstunden (5 € / Stunde)",null,{"$f":"IF(DAY(Juni!$B$4)=20,0,Juni!C32)","v":0}]
["zusätzliche Abendbetreuung gewünscht",null,{"$f":"IF(B7=\"JA\",\"u3\",\"\")","v":""}]
[]
[]
["Verpflegung"]
["Anzahl Essen pro Woche",{"$f":"IF(DAY(Juni!$B$4)=20,0,Juni!B37)","v":0}]
["Vesper",{"$f":"IF(DAY(Juni!B4)=20,\"\",IF(Juni!B38=\"\",\"\",Juni!B38))","v":""}]
["Ablaufdatum Bildungs- und Teilhabepaket (BuT)",{"$f":"IF(Juni!B39=\"\",\"\",Juni!B39)","v":""}]
["BuT für den ganzen Monat",{"$f":"IF(B39=\"\",\"\",IF(B39>=B4,\"x\",\"\"))","v":""}]
[]
["Gebührenzusammenstellung"]
["Betreuung",{"$f":"IF(AND(C31=0,C33=0),0,5*C32+IF(DAY(B4)>14,0.5*(Online_Gebührenberechnung!O18+IF(C33=\"AG\",AG!G18,0)),Online_Gebührenberechnung!O18+IF(C33=\"AG\",AG!G18,0)))","v":0}]
["Verpflegung",{"$f":"IF(DAY(B4)>14,IF(B38=\"x\",(0.5*Online_Gebührenberechnung!S18)+(0.5*Grunddaten!B40),0.5*Online_Gebührenberechnung!S18),Online_Gebührenberechnung!S18)","v":0}]
["Gesamtgebühren ",{"$f":"B43+B44","v":0}]

{"sheet":"August","index":14,"n_rows":45,"n_cols":3,"rows_kept":45,"cut":false,"hidden":true,"merged":[[23,0,27,0],[20,0,22,0],[0,0,0,2]]}
["Gebührenberechnung\nfür die Kindertagesstätten der Stadt Göppingen"]
[]
[]
["Betreuungsmonat:",{"$f":"DATE(YEAR(Juli!B4),MONTH(Juli!B4)+1,DAY(1))","v":"2022-08-01"}]
[{"$f":"Bescheid!A18","v":"???"}]
["Geburtsdatum des zu betreuenden Kindes",{"$f":"Juli!B6","v":"00:00:00"}]
["U3-Zuschlag",{"$f":"IF(B4=\"\",\"\",IF(Online_Gebührenberechnung!G19>35,\"\",\"JA\"))","v":""}]
[null,null,"auf Familienrabatt anrechenbar?"]
["Geburtsdatum Geschwisterkinder",{"$f":"IF(Juli!B9=\"\",\"\",Juli!B9)","v":""},{"$f":"IF(B9=\"\",\"\",IF(DATEDIF(B9,($B$4-DAY($B$4)+1),\"y\")>=18,\"Nein\",\"Ja\"))","v":""}]
["Geburtsdatum Geschwisterkinder",{"$f":"IF(Juli!B10=\"\",\"\",Juli!B10)","v":""},{"$f":"IF(B10=\"\",\"\",IF(DATEDIF(B10,($B$4-DAY($B$4)+1),\"y\")>=18,\"Nein\",\"Ja\"))","v":""}]
["Geburtsdatum Geschwisterkinder",{"$f":"IF(Juli!B11=\"\",\"\",Juli!B11)","v":""},{"$f":"IF(B11=\"\",\"\",IF(DATEDIF(B11,($B$4-DAY($B$4)+1),\"y\")>=18,\"Nein\",\"Ja\"))","v":""}]
["Geburtsdatum Geschwisterkinder",{"$f":"IF(Juli!B12=\"\",\"\",Juli!B12)","v":""},{"$f":"IF(B12=\"\",\"\",IF(DATEDIF(B12,($B$4-DAY($B$4)+1),\"y\")>=18,\"Nein\",\"Ja\"))","v":""}]
[]
[]
["Betreuungsform","Umfang","Kennzeichen"]
["betreute Spielgruppe für U3","bis 15 h / Woche","SG"]
["Halbtagsgruppe (ab 2 Jahre bis Schuleintritt)","bis 20 h / Woche","HG"]
["Regelkindergarten (vormittags + nachmittags)\nerweiterte Regelbetreuung (5 Std. vorm. + \n2 Nachmittage / Woche á 2,5 Std.)","bis 30 h / Woche","RG"]
["Regelkindergarten (nachmittags)","bis 10 h / Woche","NM"]
["Veränderte Öffnungszeiten \n(bis 7 Std. zusammenhängend)","bis 35 h / Woche","VÖ"]
["Ganztagesbetreuung (bis Schuleintritt)\n(über 35 h / Woche) \nzzgl. Verpflegung","bis 8 Std. Tag","GT8"]
[null,"bis 9 Std. / Tag","GT9"]
[null,"bis 10 Std. / Tag","GT10"]
["Schülerhort \n(Schuleintritt bis max. 14 Jahre)\n(im Zeitraum von 6:30 - 17:00 Uhr) \nzzgl. Verpflegung","bis 5 Std. Tag","SH5"]
[null,"bis 6 Std. / Tag","SH6"]
[null,"bis 8 Std. Tag","SH8"]
[null,"bis 9 Std. / Tag","SH9"]
[null,"bis 10 Std. / Tag","SH10"]
["Abendgruppe (17:00 - 20:00 Uhr)","bis 15 h / Woche","AG"]
[]
["gewünschte Betreuungsform",null,{"$f":"IF(DAY(Juli!$B$4)=20,0,Juli!C31)","v":""}]
["Zusatz Einzelstunden (5 € / Stunde)",null,{"$f":"IF(DAY(Juli!$B$4)=20,0,Juli!C32)","v":0}]
["zusätzliche Abendbetreuung gewünscht",null,{"$f":"IF(B7=\"JA\",\"u3\",\"\")","v":""}]
[]
[]
["Verpflegung"]
["Anzahl Essen pro Woche",{"$f":"IF(DAY(Juli!$B$4)=20,0,Juli!B37)","v":0}]
["Vesper",{"$f":"IF(DAY(Juli!B4)=20,\"\",IF(Juli!B38=\"\",\"\",Juli!B38))","v":""}]
["Ablaufdatum Bildungs- und Teilhabepaket (BuT)",{"$f":"IF(Juli!B39=\"\",\"\",Juli!B39)","v":""}]
["BuT für den ganzen Monat",{"$f":"IF(B39=\"\",\"\",IF(B39>=B4,\"x\",\"\"))","v":""}]
[]
["Gebührenzusammenstellung"]
["Betreuung",{"$f":"IF(AND(C31=0,C33=0),0,5*C32+IF(DAY(B4)>14,0.5*(Online_Gebührenberechnung!O19+IF(C33=\"AG\",AG!G19,0)),Online_Gebührenberechnung!O19+IF(C33=\"AG\",AG!G19,0)))","v":0}]
["Verpflegung",{"$f":"IF(DAY(B4)>14,IF(B38=\"x\",(0.5*Online_Gebührenberechnung!S19)+(0.5*Grunddaten!B40),0.5*Online_Gebührenberechnung!S19),Online_Gebührenberechnung!S19)","v":0}]
["Gesamtgebühren ",{"$f":"B43+B44","v":0}]

{"sheet":"Endabrechung","index":15,"n_rows":52,"n_cols":8,"rows_kept":52,"cut":false,"hidden":true,"merged":[[42,0,42,7],[19,0,19,7]]}
["Stadt Göppingen"]
["Referat Kinder und Jugend"]
["Pfarrstraße 11"]
["73033 Göppingen"]
[]
[]
[]
[{"$f":"Bescheid!A8","v":"Herrn / Frau"}]
[{"$f":"Bescheid!A9","v":"Vorname / Name"}]
[{"$f":"Bescheid!A10","v":"Straße"}]
[{"$f":"Bescheid!A11","v":"PLZ Wohnort"},null,null,null,null,null,{"$f":"TODAY()","v":"2022-01-31"}]
[]
[]
[null,null,"endgültiger Gebührenbescheid für die Zeit von"]
[null,{"$f":"DATE(YEAR(September!B4),MONTH(September!B4),DAY(1))","v":"2021-09-01"},"bis",{"$f":"DATE(YEAR(August!B4),MONTH(August!B4),DAY(31))","v":"2022-08-31"}]
[]
["Für die Betreuung und Verpflegung des Kindes"]
[{"$f":"Bescheid!A18","v":"???"},null,"geboren am",{"$f":"August!B6","v":"00:00:00"}]
["in der städtischen Kindertagesstätte ",null,null,{"$f":"Bescheid!C19","v":"(Name der Kita)"}]
["werden nach der Satzung über die Erhebung von Gebühren für die Benutzung von Kindertageseinrichtungen der Stadt Göppingen in der Fassung vom 29.04.2010 folgende Gebühren festgesetzt."]
[]
["für den Monat","Betreuung Soll","Verpfleg-ung Soll","Betreuung Ist","Verpfleg-ung Ist","Differenz Betreu-ung","Differenz Verpfleg-ung","Erstattung / Nachzahl-ung"]
[{"$f":"B15","v":"2021-09-01"},{"$f":"September!B43","v":0},{"$f":"September!B44","v":0},null,null,{"$f":"D23-B23","v":0},{"$f":"E23-C23","v":0},{"$f":"G23+F23","v":0}]
[{"$f":"DATE(YEAR(A23),MONTH(A23)+1,DAY(1))","v":"2021-10-01"},{"$f":"Oktober!B43","v":0},{"$f":"Oktober!B44","v":0},null,null,{"$f":"D24-B24","v":0},{"$f":"E24-C24","v":0},{"$f":"G24+F24","v":0}]
[{"$f":"DATE(YEAR(A24),MONTH(A24)+1,DAY(1))","v":"2021-11-01"},{"$f":"November!B43","v":0},{"$f":"November!B44","v":0},null,null,0,0,0]
["2021-12-01",{"$f":"Dezember!B43","v":0},{"$f":"Dezember!B44","v":0},null,null,0,0,0]
["2022-01-01",{"$f":"Januar!B43","v":0},{"$f":"Januar!B44","v":0},null,null,0,0,0]
["2022-02-01",{"$f":"Februar!B43","v":0},{"$f":"Februar!B44","v":0},null,null,0,0,0]
["2022-03-01",{"$f":"März!B43","v":0},{"$f":"März!B44","v":0},null,null,0,0,0]
["2022-04-01",{"$f":"April!B43","v":0},{"$f":"April!B44","v":0},null,null,0,0,0]
["2022-05-01",{"$f":"Mai!B43","v":0},{"$f":"Mai!B44","v":0},null,null,0,0,0]
["2022-06-01",{"$f":"Juni!B43","v":0},{"$f":"Juni!B44","v":0},null,null,0,0,0]
["2022-07-01",{"$f":"Juli!B43","v":0},{"$f":"Juli!B44","v":0},null,null,0,0,0]
["2022-08-01",{"$f":"August!B43","v":0},{"$f":"August!B44","v":0},null,null,0,0,0]
[null,{"$f":"SUM(B23:B34)","v":0},0,0,0,0,0,0]
[]
["Bitte überweisen Sie den Nachzahlungsbetrag innerhalb eines Monats nach Rechnungsstellung unter der PK-Nummer"]
[{"$f":"Bescheid!A38","v":"Eingabe der PK-Nummer"},null,"auf das Konto 110 bei der KSK Göppingen (BLZ 610 500 00) bzw. BIC: GOPSDE6GXXX; "]
["IBAN: DE26610500000000000110. Sofern Sie uns eine Abbuchungsermächtigung erteilt haben, werden wir die Beträge "]
["zum Fälligkeitstag abbuchen. Ein Guthaben werden wir umgehend auf die uns bekannte Bankverbindung erstatten."]
[]
["Rechtsbehelfsbelehrung:"]
["Gegen diesen Bescheid können Sie binnen eines Monats nach Zugang Widerspruch einlegen. Der Widerspruch ist schriftlich oder zur Niederschrift bei der Stadt Göppingen - Referat Kinder und Jugend - Pfarrstraße 11 in 73033 Göppingen  einzulegen. Die Frist ist auch gewahrt, wenn der Widerspruch in diesem Zeitraum bei einer anderen Dienststelle der Stadt Göppingen eingeht."]
[]
["Mit freundlichen Grüßen"]
[]
["Stadtverwaltung Göppingen"]
["Referat Kinder und Jugend"]
[]
["Rückfragen zur Betreuung:",null,"in der jeweiligen Kita"]
["Rückfragen zur Gebührenveranlagung:",null,"Frau Ayerle, Ref. Kinder + Jugend,  Tel.: 07161 650-442"]
["Rückfragen zum Zahlungseingang:",null,"Herr Keller, Stadtkasse, Tel.: 07161 650-533"]

{"sheet":"Hinweise","index":16,"n_rows":61,"n_cols":1,"rows_kept":61,"cut":false,"hidden":false,"merged":[]}
["Verfahrenshinweise:"]
[]
["Tabellenblatt Bescheid:"]
["auszufüllen sind:"]
["Adressfeld der Zahlungspflichtigen (Felder A8 bis A 11)"]
["Vorname des Kindes (Feld A18)"]
["Name der Kita (Feld C19)"]
["PK-Nummer (Feld C38)"]
[]
["Tabellenblatt September:"]
["Eingabe des Geburtsdatums des zu betreuenden Kindes (Feld B6)"]
[]
["Tabellenblätter September - August"]
["Allgemein:"]
["Die grün hinterlegten Felder sind geschützt. Sie können und sollen nicht verändert werden."]
[]
["Eintragungen werden automatisch in die Folgemonate übertragen."]
[]
["Bei Änderungen in den Folgemonaten, werden in diesem Feld die hinterlegten Formeln überschrieben."]
["Diese Formeln sind nicht wieder herstellbar. Sollten Sie eine Formel versehentlich verändert oder gelöscht haben, öffnen Sie bitte eine neue Tabelle und beginnen mit der Eingabe nochmals von vorn."]
[]
["Bei Austritten zum Monatsende bitte in der Betreuungsform des Folgemonates ein \"Hochkomma\" (Feststelltaste + #) eingeben."]
[]
["Der Betreuungsmonat und die Geburtsdaten der Kinder sind im Format TT.MM.JJ oder TT.MM.JJJJ einzugeben (unabhängig von der Anzeige)."]
[]
["Die Eigenschaft U3 oder Kinder in der Familie (Eintritt der Volljährigkeit) und Bildungs- und Teilhabepaket wird automatisch berechnet und das Ergebnis mit \"ja / nein\" bzw. mit \"x\" vermekt."]
[]
["Besondere Hinweise:"]
[]
["Die Geburtsdaten von vorhandenen Geschwisterkindern können im Tabellenblatt September oder im Tabellenblatt des Betreuungsbeginns eingetragen werden."]
["Neu geborene Kinder bitte erst im Geburtsmonat aufnehmen (für Neuberechnung)."]
[]
["Die Betreuungsform kann aus dem Pull-down-Menü ausgewählt oder direkt eingegeben werden."]
["Im Voraus gebuchte Einzelstunden, dürften die Ausnahme sein, da bei zusätzlichem Betreuungsbedarf andere Betreuungsformen günstiger sein werden."]
["Hier ist die Beratung der Eltern durch die Einrichtungen gefragt."]
[]
["Vesper  kann mit einem \"x\" markiert werden."]
[]
["An- bzw. Abmedlung zum 15. eines Monats:"]
["Bei Anmeldungen zum 15. eines Monats geben Sie bitte im Feld \"Betreuungsmonat\" den \"15.\" als Tag ein."]
["Die Folgemonate werden dann zu 100 % berechnet."]
[]
["Bei Abmeldungen zum 15. eines Monats geben Sie bitte im Feld \"Betreuungsmonat\" den \"20.\" als Tag ein."]
["Die Folgemonate werden dann auf null gesetzt."]
[]
["Bildungs- und Teilhabepaket"]
["Die Leistungen des BuT werden in der neuen Berechnung nur noch monatsweise berücksichtigt (die bisherige taggenaue Abrechnung entfällt)."]
["Ist die Famile im Berechnungsmonat an einem Tag Leistungsempfänger des BuT wird der ermäßigte Betrag auf das Essen gewährt."]
[]
["Einzelstunden und Einzelessen:"]
["Einzelstunden (5 € / Stunde) und Einzelessen (3,80 € / Essen) werden in der Einrichtung möglichst zeitnah direkt kassiert und mit der Handvorschusskasse abgerechnet."]
[]
["Bescheiderstellung:"]
["Datei unter Namen des Kindes speichern (nach Vorgabe Frau Principe)."]
["Bei Änderungen der Betreuungssituation diese Datei öffen, bearbeiten und unter einer fortlaufenden Nummer (zusätzlich) speichern (nach Vorgabe Frau Principe)."]
["1 Papier-Fertigung des Bescheids für die Erziehungsberechtigten / Zahlungspflichtigen. Diese dient auch zur Beantragung eines Zuschusses beim Kreisjugendamt."]
["1 Kopie der Datei an Frau Ayerle per Mail (kayerle@goeppingen.de) senden."]
[]
["Gründe für Änderungen:"]
["* Geburt (oder auch Tod) eines Geschwisterkindes."]
["* Erhalt oder Verlängerung des Bildungs- und Teilhabepakets"]

{"sheet":"AG","index":17,"n_rows":42,"n_cols":15,"rows_kept":42,"cut":false,"hidden":true,"merged":[[5,7,5,8],[5,9,5,10]]}
[null,null,null,null,null,null,null,null,null,null,null,{"$f":"SUM(L8:L35)","v":0},null,{"$f":"SUM(N8:N35)","v":0}]
[]
["Abendgruppe"]
[]
[]
[]
["Lfd. Nummer","Neuaufnahme / Abmeldung","Namen","Kind / Fam.","Betreuungsform","U3","Grundbetrag Stunde","Stunden Woche 1","Stunden Woche 2","Stunden Woche 3","Stunden Woche 4","Abendbetreuung ","Vesper","Abendbetreuung insgesamt","Anmerkungen"]
[1,null,null,{"$f":"(COUNTIF(September!C$9:C$12,\"Ja\"))+1","v":1},"ag",{"$f":"IF(September!B$7=\"JA\",\"x\",\"\")","v":""},{"$f":"IF(D8=\"\",0,IF(F8=\"x\",(INDEX(Grunddaten!$B$9:$E$21,MATCH(E8,Grunddaten!$A$9:$A$21,0),MATCH(D8,Grunddaten!$B$8:$E$8,0))*Grunddaten!$B$29),INDEX(Grunddaten!$B$9:$E$21,MATCH(E8,Grunddaten!$A$9:$A$21,0),MATCH(D8,Grunddaten!$B$8:$E$8,0))))","v":32},null,null,null,null,{"$f":"G8*SUM(H8:K8)","v":0},null,{"$f":"IF(M8=\"x\",G8*SUM(H8:K8)+Grunddaten!$B$40,G8*SUM(H8:K8))","v":0}]
[2,null,null,{"$f":"(COUNTIF(Oktober!C$9:C$12,\"Ja\"))+1","v":1},"ag",{"$f":"IF(Oktober!B$7=\"JA\",\"x\",\"\")","v":""},{"$f":"IF(D9=\"\",0,IF(F9=\"x\",(INDEX(Grunddaten!$B$9:$E$21,MATCH(E9,Grunddaten!$A$9:$A$21,0),MATCH(D9,Grunddaten!$B$8:$E$8,0))*Grunddaten!$B$29),INDEX(Grunddaten!$B$9:$E$21,MATCH(E9,Grunddaten!$A$9:$A$21,0),MATCH(D9,Grunddaten!$B$8:$E$8,0))))","v":32},null,null,null,null,{"$f":"G9*SUM(H9:K9)","v":0},null,{"$f":"IF(M9=\"x\",G9*SUM(H9:K9)+Grunddaten!$B$40,G9*SUM(H9:K9))","v":0}]
[3,null,null,{"$f":"(COUNTIF(November!C$9:C$12,\"Ja\"))+1","v":1},"ag",{"$f":"IF(November!B$7=\"JA\",\"x\",\"\")","v":""},{"$f":"IF(D10=\"\",0,IF(F10=\"x\",(INDEX(Grunddaten!$B$9:$E$21,MATCH(E10,Grunddaten!$A$9:$A$21,0),MATCH(D10,Grunddaten!$B$8:$E$8,0))*Grunddaten!$B$29),INDEX(Grunddaten!$B$9:$E$21,MATCH(E10,Grunddaten!$A$9:$A$21,0),MATCH(D10,Grunddaten!$B$8:$E$8,0))))","v":32},null,null,null,null,0,null,{"$f":"IF(M10=\"x\",G10*SUM(H10:K10)+Grunddaten!$B$40,G10*SUM(H10:K10))","v":0}]
[4,null,null,{"$f":"(COUNTIF(Dezember!C$9:C$12,\"Ja\"))+1","v":1},"ag",{"$f":"IF(Dezember!B$7=\"JA\",\"x\",\"\")","v":""},{"$f":"IF(D11=\"\",0,IF(F11=\"x\",(INDEX(Grunddaten!$B$9:$E$21,MATCH(E11,Grunddaten!$A$9:$A$21,0),MATCH(D11,Grunddaten!$B$8:$E$8,0))*Grunddaten!$B$29),INDEX(Grunddaten!$B$9:$E$21,MATCH(E11,Grunddaten!$A$9:$A$21,0),MATCH(D11,Grunddaten!$B$8:$E$8,0))))","v":32},null,null,null,null,0,null,{"$f":"IF(M11=\"x\",G11*SUM(H11:K11)+Grunddaten!$B$40,G11*SUM(H11:K11))","v":0}]
[5,null,null,{"$f":"(COUNTIF(Januar!C$9:C$12,\"Ja\"))+1","v":1},"ag",{"$f":"IF(Januar!B$7=\"JA\",\"x\",\"\")","v":""},{"$f":"IF(D12=\"\",0,IF(F12=\"x\",(INDEX(Grunddaten!$B$9:$E$21,MATCH(E12,Grunddaten!$A$9:$A$21,0),MATCH(D12,Grunddaten!$B$8:$E$8,0))*Grunddaten!$B$29),INDEX(Grunddaten!$B$9:$E$21,MATCH(E12,Grunddaten!$A$9:$A$21,0),MATCH(D12,Grunddaten!$B$8:$E$8,0))))","v":32},null,null,null,null,0,null,{"$f":"IF(M12=\"x\",G12*SUM(H12:K12)+Grunddaten!$B$40,G12*SUM(H12:K12))","v":0}]
[6,null,null,{"$f":"(COUNTIF(Februar!C$9:C$12,\"Ja\"))+1","v":1},"ag",{"$f":"IF(Februar!B$7=\"JA\",\"x\",\"\")","v":""},{"$f":"IF(D13=\"\",0,IF(F13=\"x\",(INDEX(Grunddaten!$B$9:$E$21,MATCH(E13,Grunddaten!$A$9:$A$21,0),MATCH(D13,Grunddaten!$B$8:$E$8,0))*Grunddaten!$B$29),INDEX(Grunddaten!$B$9:$E$21,MATCH(E13,Grunddaten!$A$9:$A$21,0),MATCH(D13,Grunddaten!$B$8:$E$8,0))))","v":32},null,null,null,null,0,null,{"$f":"IF(M13=\"x\",G13*SUM(H13:K13)+Grunddaten!$B$40,G13*SUM(H13:K13))","v":0}]
[7,null,null,{"$f":"(COUNTIF(März!C$9:C$12,\"Ja\"))+1","v":1},"ag",{"$f":"IF(März!B$7=\"JA\",\"x\",\"\")","v":""},{"$f":"IF(D14=\"\",0,IF(F14=\"x\",(INDEX(Grunddaten!$B$9:$E$21,MATCH(E14,Grunddaten!$A$9:$A$21,0),MATCH(D14,Grunddaten!$B$8:$E$8,0))*Grunddaten!$B$29),INDEX(Grunddaten!$B$9:$E$21,MATCH(E14,Grunddaten!$A$9:$A$21,0),MATCH(D14,Grunddaten!$B$8:$E$8,0))))","v":32},null,null,null,null,0,null,{"$f":"IF(M14=\"x\",G14*SUM(H14:K14)+Grunddaten!$B$40,G14*SUM(H14:K14))","v":0}]
[8,null,null,{"$f":"(COUNTIF(April!C$9:C$12,\"Ja\"))+1","v":1},"ag",{"$f":"IF(April!B$7=\"JA\",\"x\",\"\")","v":""},{"$f":"IF(D15=\"\",0,IF(F15=\"x\",(INDEX(Grunddaten!$B$9:$E$21,MATCH(E15,Grunddaten!$A$9:$A$21,0),MATCH(D15,Grunddaten!$B$8:$E$8,0))*Grunddaten!$B$29),INDEX(Grunddaten!$B$9:$E$21,MATCH(E15,Grunddaten!$A$9:$A$21,0),MATCH(D15,Grunddaten!$B$8:$E$8,0))))","v":32},null,null,null,null,0,null,{"$f":"IF(M15=\"x\",G15*SUM(H15:K15)+Grunddaten!$B$40,G15*SUM(H15:K15))","v":0}]
[9,null,null,{"$f":"(COUNTIF(Mai!C$9:C$12,\"Ja\"))+1","v":1},"ag",{"$f":"IF(Mai!B$7=\"JA\",\"x\",\"\")","v":""},{"$f":"IF(D16=\"\",0,IF(F16=\"x\",(INDEX(Grunddaten!$B$9:$E$21,MATCH(E16,Grunddaten!$A$9:$A$21,0),MATCH(D16,Grunddaten!$B$8:$E$8,0))*Grunddaten!$B$29),INDEX(Grunddaten!$B$9:$E$21,MATCH(E16,Grunddaten!$A$9:$A$21,0),MATCH(D16,Grunddaten!$B$8:$E$8,0))))","v":32},null,null,null,null,0,null,{"$f":"IF(M16=\"x\",G16*SUM(H16:K16)+Grunddaten!$B$40,G16*SUM(H16:K16))","v":0}]
[10,null,null,{"$f":"(COUNTIF(Juni!C$9:C$12,\"Ja\"))+1","v":1},"ag",{"$f":"IF(Juni!B$7=\"JA\",\"x\",\"\")","v":""},{"$f":"IF(D17=\"\",0,IF(F17=\"x\",(INDEX(Grunddaten!$B$9:$E$21,MATCH(E17,Grunddaten!$A$9:$A$21,0),MATCH(D17,Grunddaten!$B$8:$E$8,0))*Grunddaten!$B$29),INDEX(Grunddaten!$B$9:$E$21,MATCH(E17,Grunddaten!$A$9:$A$21,0),MATCH(D17,Grunddaten!$B$8:$E$8,0))))","v":32},null,null,null,null,0,null,{"$f":"IF(M17=\"x\",G17*SUM(H17:K17)+Grunddaten!$B$40,G17*SUM(H17:K17))","v":0}]
[11,null,null,{"$f":"(COUNTIF(Juli!C$9:C$12,\"Ja\"))+1","v":1},"ag",{"$f":"IF(Juli!B$7=\"JA\",\"x\",\"\")","v":""},{"$f":"IF(D18=\"\",0,IF(F18=\"x\",(INDEX(Grunddaten!$B$9:$E$21,MATCH(E18,Grunddaten!$A$9:$A$21,0),MATCH(D18,Grunddaten!$B$8:$E$8,0))*Grunddaten!$B$29),INDEX(Grunddaten!$B$9:$E$21,MATCH(E18,Grunddaten!$A$9:$A$21,0),MATCH(D18,Grunddaten!$B$8:$E$8,0))))","v":32},null,null,null,null,0,null,{"$f":"IF(M18=\"x\",G18*SUM(H18:K18)+Grunddaten!$B$40,G18*SUM(H18:K18))","v":0}]
[12,null,null,{"$f":"(COUNTIF(August!C$9:C$12,\"Ja\"))+1","v":1},"ag",{"$f":"IF(August!B$7=\"JA\",\"x\",\"\")","v":""},{"$f":"IF(D19=\"\",0,IF(F19=\"x\",(INDEX(Grunddaten!$B$9:$E$21,MATCH(E19,Grunddaten!$A$9:$A$21,0),MATCH(D19,Grunddaten!$B$8:$E$8,0))*Grunddaten!$B$29),INDEX(Grunddaten!$B$9:$E$21,MATCH(E19,Grunddaten!$A$9:$A$21,0),MATCH(D19,Grunddaten!$B$8:$E$8,0))))","v":32},null,null,null,null,0,null,{"$f":"IF(M19=\"x\",G19*SUM(H19:K19)+Grunddaten!$B$40,G19*SUM(H19:K19))","v":0}]
[13,null,null,null,"ag",null,{"$f":"IF(D20=\"\",0,IF(F20=\"x\",(INDEX(#REF!,MATCH(E20,#REF!,0),MATCH(D20,#REF!,0))*#REF!),INDEX(#REF!,MATCH(E20,#REF!,0),MATCH(D20,#REF!,0))))","v":0},null,null,null,null,{"$f":"G20*SUM(H20:K20)","v":0},null,{"$f":"IF(M20=\"x\",G20*SUM(H20:K20)+Grunddaten!$B$40,G20*SUM(H20:K20))","v":0}]
[14,null,null,null,"ag",null,{"$f":"IF(D21=\"\",0,IF(F21=\"x\",(INDEX(#REF!,MATCH(E21,#REF!,0),MATCH(D21,#REF!,0))*#REF!),INDEX(#REF!,MATCH(E21,#REF!,0),MATCH(D21,#REF!,0))))","v":0},null,null,null,null,0,null,{"$f":"IF(M21=\"x\",G21*SUM(H21:K21)+Grunddaten!$B$40,G21*SUM(H21:K21))","v":0}]
[15,null,null,null,"ag",null,{"$f":"IF(D22=\"\",0,IF(F22=\"x\",(INDEX(#REF!,MATCH(E22,#REF!,0),MATCH(D22,#REF!,0))*#REF!),INDEX(#REF!,MATCH(E22,#REF!,0),MATCH(D22,#REF!,0))))","v":0},null,null,null,null,0,null,{"$f":"IF(M22=\"x\",G22*SUM(H22:K22)+Grunddaten!$B$40,G22*SUM(H22:K22))","v":0}]
[16,null,null,null,"ag",null,{"$f":"IF(D23=\"\",0,IF(F23=\"x\",(INDEX(#REF!,MATCH(E23,#REF!,0),MATCH(D23,#REF!,0))*#REF!),INDEX(#REF!,MATCH(E23,#REF!,0),MATCH(D23,#REF!,0))))","v":0},null,null,null,null,0,null,{"$f":"IF(M23=\"x\",G23*SUM(H23:K23)+Grunddaten!$B$40,G23*SUM(H23:K23))","v":0}]
[17,null,null,null,"ag",null,{"$f":"IF(D24=\"\",0,IF(F24=\"x\",(INDEX(#REF!,MATCH(E24,#REF!,0),MATCH(D24,#REF!,0))*#REF!),INDEX(#REF!,MATCH(E24,#REF!,0),MATCH(D24,#REF!,0))))","v":0},null,null,null,null,0,null,{"$f":"IF(M24=\"x\",G24*SUM(H24:K24)+Grunddaten!$B$40,G24*SUM(H24:K24))","v":0}]
[18,null,null,null,"ag",null,{"$f":"IF(D25=\"\",0,IF(F25=\"x\",(INDEX(#REF!,MATCH(E25,#REF!,0),MATCH(D25,#REF!,0))*#REF!),INDEX(#REF!,MATCH(E25,#REF!,0),MATCH(D25,#REF!,0))))","v":0},null,null,null,null,0,null,{"$f":"IF(M25=\"x\",G25*SUM(H25:K25)+Grunddaten!$B$40,G25*SUM(H25:K25))","v":0}]
[19,null,null,null,"ag",null,{"$f":"IF(D26=\"\",0,IF(F26=\"x\",(INDEX(#REF!,MATCH(E26,#REF!,0),MATCH(D26,#REF!,0))*#REF!),INDEX(#REF!,MATCH(E26,#REF!,0),MATCH(D26,#REF!,0))))","v":0},null,null,null,null,0,null,{"$f":"IF(M26=\"x\",G26*SUM(H26:K26)+Grunddaten!$B$40,G26*SUM(H26:K26))","v":0}]
[20,null,null,null,"ag",null,{"$f":"IF(D27=\"\",0,IF(F27=\"x\",(INDEX(#REF!,MATCH(E27,#REF!,0),MATCH(D27,#REF!,0))*#REF!),INDEX(#REF!,MATCH(E27,#REF!,0),MATCH(D27,#REF!,0))))","v":0},null,null,null,null,0,null,{"$f":"IF(M27=\"x\",G27*SUM(H27:K27)+Grunddaten!$B$40,G27*SUM(H27:K27))","v":0}]
[21,null,null,null,"ag",null,{"$f":"IF(D28=\"\",0,IF(F28=\"x\",(INDEX(#REF!,MATCH(E28,#REF!,0),MATCH(D28,#REF!,0))*#REF!),INDEX(#REF!,MATCH(E28,#REF!,0),MATCH(D28,#REF!,0))))","v":0},null,null,null,null,0,null,{"$f":"IF(M28=\"x\",G28*SUM(H28:K28)+Grunddaten!$B$40,G28*SUM(H28:K28))","v":0}]
[22,null,null,null,"ag",null,{"$f":"IF(D29=\"\",0,IF(F29=\"x\",(INDEX(#REF!,MATCH(E29,#REF!,0),MATCH(D29,#REF!,0))*#REF!),INDEX(#REF!,MATCH(E29,#REF!,0),MATCH(D29,#REF!,0))))","v":0},null,null,null,null,0,null,{"$f":"IF(M29=\"x\",G29*SUM(H29:K29)+Grunddaten!$B$40,G29*SUM(H29:K29))","v":0}]
[23,null,null,null,"ag",null,{"$f":"IF(D30=\"\",0,IF(F30=\"x\",(INDEX(#REF!,MATCH(E30,#REF!,0),MATCH(D30,#REF!,0))*#REF!),INDEX(#REF!,MATCH(E30,#REF!,0),MATCH(D30,#REF!,0))))","v":0},null,null,null,null,0,null,{"$f":"IF(M30=\"x\",G30*SUM(H30:K30)+Grunddaten!$B$40,G30*SUM(H30:K30))","v":0}]
[24,null,null,null,"ag",null,{"$f":"IF(D31=\"\",0,IF(F31=\"x\",(INDEX(#REF!,MATCH(E31,#REF!,0),MATCH(D31,#REF!,0))*#REF!),INDEX(#REF!,MATCH(E31,#REF!,0),MATCH(D31,#REF!,0))))","v":0},null,null,null,null,0,null,{"$f":"IF(M31=\"x\",G31*SUM(H31:K31)+Grunddaten!$B$40,G31*SUM(H31:K31))","v":0}]
[25,null,null,null,"ag",null,{"$f":"IF(D32=\"\",0,IF(F32=\"x\",(INDEX(#REF!,MATCH(E32,#REF!,0),MATCH(D32,#REF!,0))*#REF!),INDEX(#REF!,MATCH(E32,#REF!,0),MATCH(D32,#REF!,0))))","v":0},null,null,null,null,0,null,{"$f":"IF(M32=\"x\",G32*SUM(H32:K32)+Grunddaten!$B$40,G32*SUM(H32:K32))","v":0}]
[26,null,null,null,"ag",null,{"$f":"IF(D33=\"\",0,IF(F33=\"x\",(INDEX(#REF!,MATCH(E33,#REF!,0),MATCH(D33,#REF!,0))*#REF!),INDEX(#REF!,MATCH(E33,#REF!,0),MATCH(D33,#REF!,0))))","v":0},null,null,null,null,0,null,{"$f":"IF(M33=\"x\",G33*SUM(H33:K33)+Grunddaten!$B$40,G33*SUM(H33:K33))","v":0}]
[27,null,null,null,"ag",null,{"$f":"IF(D34=\"\",0,IF(F34=\"x\",(INDEX(#REF!,MATCH(E34,#REF!,0),MATCH(D34,#REF!,0))*#REF!),INDEX(#REF!,MATCH(E34,#REF!,0),MATCH(D34,#REF!,0))))","v":0},null,null,null,null,0,null,{"$f":"IF(M34=\"x\",G34*SUM(H34:K34)+Grunddaten!$B$40,G34*SUM(H34:K34))","v":0}]
[28,null,null,null,"ag",null,{"$f":"IF(D35=\"\",0,IF(F35=\"x\",(INDEX(#REF!,MATCH(E35,#REF!,0),MATCH(D35,#REF!,0))*#REF!),INDEX(#REF!,MATCH(E35,#REF!,0),MATCH(D35,#REF!,0))))","v":0},null,null,null,null,0,null,{"$f":"IF(M35=\"x\",G35*SUM(H35:K35)+Grunddaten!$B$40,G35*SUM(H35:K35))","v":0}]
[]
[null,null,"Namen löschen"]
[]
[]
[]
[]
[null,null,"ABC"]